{"text_format":"1","workbook":"xlsx","n_sheets":11,"sheets":["PORTO AMAZONAS - BATATA","PORTO AMAZONAS - CEREAL","LAPA - CEREAL","BALSA NOVA - CEREAL","Instruções","Entrada de dados","Totalização","TD Produto Porto","Produto Porto","Produto","Arquivo"],"not_rendered":{"charts":0,"images":1,"macros":1,"external_links":0,"defined_names":18,"comments":0,"pivot_tables":4},"unopened":[],"bounds":{"document_bytes":16777216,"sheet_cells":100000,"rows_first":2000,"rows_last":500,"rows_between":2000,"halvings":0,"cell_chars":16384,"cell_head_chars":4096},"cells_cut":0,"cells_raw":0,"read":"whole","date_system":"1900"}

{"sheet":"PORTO AMAZONAS - BATATA","index":0,"n_rows":38,"n_cols":9,"rows_kept":38,"cut":false,"hidden":false,"merged":[[2,1,2,5],[1,0,1,30],[2,6,2,8]]}
["                                                                                                                                     CONTROLE DE ESTOQUE  -  PORTO AMAZONAS"]
["                                                                                                                                                                PRODUTOS - BATATA"]
["DATA","2016-05-21",null,null,null,null,"2016-05-30"]
["PRODUTO","UNID","SALDO","ENTRADA","SAÍDA","RETORNO","ENTRADA","SAÍDA","RETORNO"]
["Flavom","lt",3]
["Sistemic","lt",3]
["Frutus Flus","lt",40]
["Fert Mimo","lt",6]
["Scher 10","lt",31]
["Oro Bor","lt",3]
["Currum Max","lt",46]
["Tiger ","lt",1.1000000000000001]
["Brilhant","lt",10]
["Korpam","lt",73]
["Actara","kg",12]
["Ampligo","lt",8.5]
["Engeo Pleno","lt",17]
["Ortene","kg",12]
["Curiom","lt",5]
["Repom","kg",1.5]
["Nidas","kg",5.5]
["Benivia","lt",0.5]
["Kocid","kg",31]
["Zignal","lt",22]
["Cimox","kg",16]
["Carbendazim","lt",7]
["Pro Plant","lt",28]
["Revus","lt",4]
["Previnil","lt",28]
["Morcult","lt",5.5]
["Amistar Top","lt",2]
["Rodomil","lt",5]
["Brabonil","lt",1]
["Cobre","lt",4]
["Equatim","kg",2]
["Fuzilade","lt",5]
["Coronel ","lt",7]
["Adesil","lt",11]

{"sheet":"PORTO AMAZONAS - CEREAL","index":1,"n_rows":32,"n_cols":9,"rows_kept":32,"cut":false,"hidden":false,"merged":[[2,1,2,5],[2,6,2,8],[1,0,1,16383]]}
["                                                                                                                                     CONTROLE DE ESTOQUE  -  PORTO AMAZONAS"]
["                                                                                                                                                   PRODUTOS - SOJA/ CEREAL"]
["DATA","2016-05-21",null,null,null,null,"2016-06-30"]
["PRODUTO","UNID","SALDO","ENTRADA","SAÍDA","RETORNO","ENTRADA","SAÍDA","RETORNO"]
["Unizeb ","kg",108]
["Elatus ","kg",50]
["Opera Ultra ","lt",41]
["Escore flex ","lt",8]
["Opera Ultra ","lt",1.5]
["Ninbus ","lt",36]
["Fox ","lt",22]
["Aureo ","lt",78]
["Mertim ","lt",6]
["Verdict ","lt",22]
["Anpligo ","lt",4]
["Flex ","lt",9.5]
["Imunit ","lt",4]
["Platinum neo ","lt",5]
["Engeo Pleno ","lt",44]
["Curiom ","lt",209]
["Certero ","lt",2]
["Craft ","lt",1]
["Caiso ","lt",1.7]
["Mustang ","lt",3]
["Brilhante ","lt",5]
["Zatphir ","lt",45]
["Natur óleo ","lt",2]
["Paradox ","lt",9]
["Fert Mimo ","lt",65]
["Ad+ ","lt",2]
["Como","lt",66]
["Starter","lt",53]

{"sheet":"LAPA - CEREAL","index":2,"n_rows":24,"n_cols":9,"rows_kept":24,"cut":false,"hidden":false,"merged":[[2,6,2,8],[2,3,2,5],[0,0,0,8],[1,0,1,8]]}
["CONTROLE DE ESTOQUE  -  LAPA"]
["PRODUTOS - SOJA/CEREAL"]
["DATA",null,null,"2016-05-21"]
["PRODUTO","UNID","SALDO","ENTRADA","SAÍDA ","RETORNO","ENTRADA","SAÍDA ","RETORNO"]
["Zapp","lt",145]
["Start","lt",18]
["CoMo","lt",11]
["Flex","lt",38.5]
["Opera Ultra","lt",80]
["Amistar Top","lt",9.5]
["Dual Gold","lt",48]
["Adesil","lt",37.5]
["Finale","lt",10]
["Basagran","lt",24]
["Fertimino","lt",50]
["Quantis","lt",65]
["Carbendozin","lt",7]
["Amplo","lt",12.5]
["Nimbus","lt",320]
["Quality","kg",3.5]
["Fertaction","lt",19]
["Engeo Pleno","lt",100]
["Agral","lt",78]
["Tocha","lt",30]

{"sheet":"BALSA NOVA - CEREAL","index":3,"n_rows":24,"n_cols":9,"rows_kept":24,"cut":false,"hidden":false,"merged":[[2,1,2,5],[2,6,2,8],[0,0,0,29],[1,0,1,14]]}
["                                                                                                                                     CONTROLE DE ESTOQUE  -  BALSA NOVA"]
["                                          PRODUTOS - SOJA/CEREAL"]
["DATA","2016-05-21"]
["PRODUTO","UNID","SALDO","ENTRADA","SAÍDA ","RETORNO","ENTRADA","SAÍDA ","RETORNO"]
["Zapp","lt",145]
["Start","lt",18]
["CoMo","lt",11]
["Flex","lt",38.5]
["Opera Ultra","lt",80]
["Amistar Top","lt",9.5]
["Dual Gold","lt",48]
["Adesil","lt",37.5]
["Finale","lt",10]
["Basagran","lt",24]
["Fertimino","lt",50]
["Quantis","lt",65]
["Carbendozin","lt",7]
["Amplo","lt",12.5]
["Nimbus","lt",320]
["Quality","kg",3.5]
["Fertaction","lt",19]
["Engeo Pleno","lt",100]
["Agral","lt",78]
["Tocha","lt",30]

{"sheet":"Instruções","index":4,"n_rows":13,"n_cols":24,"rows_kept":13,"cut":false,"hidden":false,"merged":[[1,23,4,25],[8,23,10,25],[12,23,13,25]]}
[]
[null,null,null,null,null,null,null,null,null,null,null,null,null,null,null,null,null,null,null,null,null,null,null,"Utilize os segmentadores p/ selecionar PORTO e Tipo Produto p/ filtrar parametros da entrada de dados."]
[]
[]
[]
[]
[null,null,null,null,null,null,null,null,null,null,null,null,null,null,null,null,null,null,null,null,null,null,null,"Coluna SALDO é autocalculada."]
[]
[null,null,null,null,null,null,null,null,null,null,null,null,null,null,null,null,null,null,null,null,null,null,null,"O acréscimo de dados utiliza a ferramenta Query table / Nova Consulta."]
[]
[]
[]
[null,null,null,null,null,null,null,null,null,null,null,null,null,null,null,null,null,null,null,null,null,null,null,"Data selecionada será mostrada na célula E5."]

{"sheet":"Entrada de dados","index":5,"n_rows":100,"n_cols":26,"rows_kept":100,"cut":false,"hidden":false,"merged":[[4,4,4,6],[5,11,6,12],[5,13,6,15],[0,10,0,12]]}
[null,null,null,null,null,null,null,null,null,null,"CADASTRAR"]
[null,null,null,null,null,null,"Contagem de UNID",{"$f":"IF(OR($F$3=6,ROW()>$F$3),\"\",IF($A7=\"\",U6,INDEX(TabPorto[],MATCH($A7,TabPorto[PORTO],0),1)))","v":2}]
[null,null,null,null,null,{"$f":"GETPIVOTDATA(\"UNID\",$G$2)+6","v":26},20,{"$f":"INDEX(TabTipoProduto[CÓD TIPO],MATCH(B4,TabTipoProduto[TIPO PROD],0))","v":1}]
["TIPO PROD","SOJA/CEREAL"]
[null,null,null,null,"2016-06-06",null,null,{"$f":"IF(ISERROR(MATCH(1,((TabArquivoCon[DATA]=E5)*(TabArquivoCon[CÓD PORTO]=H2)*(TabArquivoCon[CÓD TIPO]=H3)),0)),\"Não cadastrado\",\"Cadastrado\")","v":"Não cadastrado"}]
["PORTO","PRODUTO","UNID","SALDO","ENTRADA","SAÍDA ","RETORNO",null,null,null,null,2016,null,"Junho",null,null,null,null,null,"DATA","CÓD PORTO","CÓD PRODUTO","CÓD TIPO","ENTRADA","SAÍDA","RETORNO"]
["LAPA","Adesil","lt",{"$f":"E7-F7+G7","v":84.59999999999998},257.39999999999998,192,19.2,null,null,null,null,null,null,null,null,null,null,null,null,{"$f":"IF(ROW()<=$F$3,$E$5,\"\")","v":"2016-06-06"},{"$f":"IF(OR($F$3=6,ROW()>$F$3),\"\",IF($A7=\"\",U6,INDEX(TabPorto[],MATCH($A7,TabPorto[PORTO],0),1)))","v":2},{"$f":"IF($B7=\"\",\"\",INDEX(TabProdutoPorto[],MATCH($B7,TabProdutoPorto[PRODUTO],0),5))","v":3},{"$f":"IF(OR($B$4=\"\",ROW()>$F$3),\"\",INDEX(TabTipoProduto[],MATCH($B$4,TabTipoProduto[TIPO PROD],0),1))","v":1},{"$f":"IF(OR(ROW()>$F$3,ISERR(1/TabEntradaDados[[#This Row],[ENTRADA]])),\"\",TabEntradaDados[[#This Row],[ENTRADA]])","v":257.39999999999998},{"$f":"IF(OR(ROW()>$F$3,ISERR(1/TabEntradaDados[[#This Row],[SAÍDA ]])),\"\",TabEntradaDados[[#This Row],[SAÍDA ]])","v":192},{"$f":"IF(OR(ROW()>$F$3,ISERR(1/TabEntradaDados[[#This Row],[RETORNO]])),\"\",TabEntradaDados[[#This Row],[RETORNO]])","v":19.2}]
[null,"Agral","lt",{"$f":"E8-F8+G8","v":9},29.4,22.2,1.7999999999999998,null,null,null,1,2,3,4,5,6,7,null,null,{"$f":"IF(ROW()<=$F$3,$E$5,\"\")","v":"2016-06-06"},{"$f":"IF(OR($F$3=6,ROW()>$F$3),\"\",IF($A8=\"\",U7,INDEX(TabPorto[],MATCH($A8,TabPorto[PORTO],0),1)))","v":2},{"$f":"IF($B8=\"\",\"\",INDEX(TabProdutoPorto[],MATCH($B8,TabProdutoPorto[PRODUTO],0),5))","v":4},{"$f":"IF(OR($B$4=\"\",ROW()>$F$3),\"\",INDEX(TabTipoProduto[],MATCH($B$4,TabTipoProduto[TIPO PROD],0),1))","v":1},{"$f":"IF(OR(ROW()>$F$3,ISERR(1/TabEntradaDados[[#This Row],[ENTRADA]])),\"\",TabEntradaDados[[#This Row],[ENTRADA]])","v":29.4},{"$f":"IF(OR(ROW()>$F$3,ISERR(1/TabEntradaDados[[#This Row],[SAÍDA ]])),\"\",TabEntradaDados[[#This Row],[SAÍDA ]])","v":22.2},{"$f":"IF(OR(ROW()>$F$3,ISERR(1/TabEntradaDados[[#This Row],[RETORNO]])),\"\",TabEntradaDados[[#This Row],[RETORNO]])","v":1.7999999999999998}]
[null,"Amistar Top","lt",6.0000000000000009,18,13.2,1.2,null,null,null,"Dom","Seg","Ter","Qua","Qui","Sex","Sáb",null,null,"2016-06-06",{"$f":"IF(OR($F$3=6,ROW()>$F$3),\"\",IF($A9=\"\",U8,INDEX(TabPorto[],MATCH($A9,TabPorto[PORTO],0),1)))","v":2},{"$f":"IF($B9=\"\",\"\",INDEX(TabProdutoPorto[],MATCH($B9,TabProdutoPorto[PRODUTO],0),5))","v":5},{"$f":"IF(OR($B$4=\"\",ROW()>$F$3),\"\",INDEX(TabTipoProduto[],MATCH($B$4,TabTipoProduto[TIPO PROD],0),1))","v":1},{"$f":"IF(OR(ROW()>$F$3,ISERR(1/TabEntradaDados[[#This Row],[ENTRADA]])),\"\",TabEntradaDados[[#This Row],[ENTRADA]])","v":18},{"$f":"IF(OR(ROW()>$F$3,ISERR(1/TabEntradaDados[[#This Row],[SAÍDA ]])),\"\",TabEntradaDados[[#This Row],[SAÍDA ]])","v":13.2},{"$f":"IF(OR(ROW()>$F$3,ISERR(1/TabEntradaDados[[#This Row],[RETORNO]])),\"\",TabEntradaDados[[#This Row],[RETORNO]])","v":1.2}]
[null,"Amplo","lt",20.999999999999996,63.599999999999994,47.4,4.8,null,null,null,{"$f":"IF(K8=DiaSemana,PrimeiraData,INDEX($K$10:$Q$10,1,DiaSemana)+K8-DiaSemana)","v":"2016-05-29"},"2016-05-30","2016-05-31","2016-06-01","2016-06-02","2016-06-03","2016-06-04",null,null,"2016-06-06",{"$f":"IF(OR($F$3=6,ROW()>$F$3),\"\",IF($A10=\"\",U9,INDEX(TabPorto[],MATCH($A10,TabPorto[PORTO],0),1)))","v":2},{"$f":"IF($B10=\"\",\"\",INDEX(TabProdutoPorto[],MATCH($B10,TabProdutoPorto[PRODUTO],0),5))","v":7},{"$f":"IF(OR($B$4=\"\",ROW()>$F$3),\"\",INDEX(TabTipoProduto[],MATCH($B$4,TabTipoProduto[TIPO PROD],0),1))","v":1},{"$f":"IF(OR(ROW()>$F$3,ISERR(1/TabEntradaDados[[#This Row],[ENTRADA]])),\"\",TabEntradaDados[[#This Row],[ENTRADA]])","v":63.599999999999994},{"$f":"IF(OR(ROW()>$F$3,ISERR(1/TabEntradaDados[[#This Row],[SAÍDA ]])),\"\",TabEntradaDados[[#This Row],[SAÍDA ]])","v":47.4},{"$f":"IF(OR(ROW()>$F$3,ISERR(1/TabEntradaDados[[#This Row],[RETORNO]])),\"\",TabEntradaDados[[#This Row],[RETORNO]])","v":4.8}]
[null,"Basagran","lt",43.199999999999996,132.6,99,9.6,null,null,null,{"$f":"K10+7","v":"2016-06-05"},{"$f":"L10+7","v":"2016-06-06"},{"$f":"M10+7","v":"2016-06-07"},"2016-06-08","2016-06-09","2016-06-10","2016-06-11",null,null,"2016-06-06",{"$f":"IF(OR($F$3=6,ROW()>$F$3),\"\",IF($A11=\"\",U10,INDEX(TabPorto[],MATCH($A11,TabPorto[PORTO],0),1)))","v":2},{"$f":"IF($B11=\"\",\"\",INDEX(TabProdutoPorto[],MATCH($B11,TabProdutoPorto[PRODUTO],0),5))","v":10},{"$f":"IF(OR($B$4=\"\",ROW()>$F$3),\"\",INDEX(TabTipoProduto[],MATCH($B$4,TabTipoProduto[TIPO PROD],0),1))","v":1},{"$f":"IF(OR(ROW()>$F$3,ISERR(1/TabEntradaDados[[#This Row],[ENTRADA]])),\"\",TabEntradaDados[[#This Row],[ENTRADA]])","v":132.6},{"$f":"IF(OR(ROW()>$F$3,ISERR(1/TabEntradaDados[[#This Row],[SAÍDA ]])),\"\",TabEntradaDados[[#This Row],[SAÍDA ]])","v":99},{"$f":"IF(OR(ROW()>$F$3,ISERR(1/TabEntradaDados[[#This Row],[RETORNO]])),\"\",TabEntradaDados[[#This Row],[RETORNO]])","v":9.6}]
[null,"Carbendozin","lt",4.7999999999999989,15.6,11.4,0.6,null,null,null,"2016-06-12",{"$f":"L11+7","v":"2016-06-13"},"2016-06-14","2016-06-15","2016-06-16","2016-06-17","2016-06-18",null,null,"2016-06-06",{"$f":"IF(OR($F$3=6,ROW()>$F$3),\"\",IF($A12=\"\",U11,INDEX(TabPorto[],MATCH($A12,TabPorto[PORTO],0),1)))","v":2},{"$f":"IF($B12=\"\",\"\",INDEX(TabProdutoPorto[],MATCH($B12,TabProdutoPorto[PRODUTO],0),5))","v":17},{"$f":"IF(OR($B$4=\"\",ROW()>$F$3),\"\",INDEX(TabTipoProduto[],MATCH($B$4,TabTipoProduto[TIPO PROD],0),1))","v":1},{"$f":"IF(OR(ROW()>$F$3,ISERR(1/TabEntradaDados[[#This Row],[ENTRADA]])),\"\",TabEntradaDados[[#This Row],[ENTRADA]])","v":15.6},{"$f":"IF(OR(ROW()>$F$3,ISERR(1/TabEntradaDados[[#This Row],[SAÍDA ]])),\"\",TabEntradaDados[[#This Row],[SAÍDA ]])","v":11.4},{"$f":"IF(OR(ROW()>$F$3,ISERR(1/TabEntradaDados[[#This Row],[RETORNO]])),\"\",TabEntradaDados[[#This Row],[RETORNO]])","v":0.6}]
[null,"CoMo","lt",25.800000000000004,79.2,59.4,6,null,null,null,"2016-06-19","2016-06-20","2016-06-21","2016-06-22","2016-06-23","2016-06-24","2016-06-25",null,null,"2016-06-06",{"$f":"IF(OR($F$3=6,ROW()>$F$3),\"\",IF($A13=\"\",U12,INDEX(TabPorto[],MATCH($A13,TabPorto[PORTO],0),1)))","v":2},{"$f":"IF($B13=\"\",\"\",INDEX(TabProdutoPorto[],MATCH($B13,TabProdutoPorto[PRODUTO],0),5))","v":21},{"$f":"IF(OR($B$4=\"\",ROW()>$F$3),\"\",INDEX(TabTipoProduto[],MATCH($B$4,TabTipoProduto[TIPO PROD],0),1))","v":1},{"$f":"IF(OR(ROW()>$F$3,ISERR(1/TabEntradaDados[[#This Row],[ENTRADA]])),\"\",TabEntradaDados[[#This Row],[ENTRADA]])","v":79.2},{"$f":"IF(OR(ROW()>$F$3,ISERR(1/TabEntradaDados[[#This Row],[SAÍDA ]])),\"\",TabEntradaDados[[#This Row],[SAÍDA ]])","v":59.4},{"$f":"IF(OR(ROW()>$F$3,ISERR(1/TabEntradaDados[[#This Row],[RETORNO]])),\"\",TabEntradaDados[[#This Row],[RETORNO]])","v":6}]
[null,"Dual Gold","lt",19.8,61.8,46.199999999999996,4.2,null,null,null,"2016-06-26","2016-06-27","2016-06-28","2016-06-29","2016-06-30","2016-07-01","2016-07-02",null,null,"2016-06-06",{"$f":"IF(OR($F$3=6,ROW()>$F$3),\"\",IF($A14=\"\",U13,INDEX(TabPorto[],MATCH($A14,TabPorto[PORTO],0),1)))","v":2},{"$f":"IF($B14=\"\",\"\",INDEX(TabProdutoPorto[],MATCH($B14,TabProdutoPorto[PRODUTO],0),5))","v":27},{"$f":"IF(OR($B$4=\"\",ROW()>$F$3),\"\",INDEX(TabTipoProduto[],MATCH($B$4,TabTipoProduto[TIPO PROD],0),1))","v":1},{"$f":"IF(OR(ROW()>$F$3,ISERR(1/TabEntradaDados[[#This Row],[ENTRADA]])),\"\",TabEntradaDados[[#This Row],[ENTRADA]])","v":61.8},{"$f":"IF(OR(ROW()>$F$3,ISERR(1/TabEntradaDados[[#This Row],[SAÍDA ]])),\"\",TabEntradaDados[[#This Row],[SAÍDA ]])","v":46.199999999999996},{"$f":"IF(OR(ROW()>$F$3,ISERR(1/TabEntradaDados[[#This Row],[RETORNO]])),\"\",TabEntradaDados[[#This Row],[RETORNO]])","v":4.2}]
[null,"Engeo Pleno","lt",5.3999999999999995,16.2,12,1.2,null,null,null,{"$f":"K14+7","v":"2016-07-03"},{"$f":"L14+7","v":"2016-07-04"},{"$f":"M14+7","v":"2016-07-05"},{"$f":"N14+7","v":"2016-07-06"},{"$f":"O14+7","v":"2016-07-07"},{"$f":"P14+7","v":"2016-07-08"},"2016-07-09",null,null,"2016-06-06",{"$f":"IF(OR($F$3=6,ROW()>$F$3),\"\",IF($A15=\"\",U14,INDEX(TabPorto[],MATCH($A15,TabPorto[PORTO],0),1)))","v":2},{"$f":"IF($B15=\"\",\"\",INDEX(TabProdutoPorto[],MATCH($B15,TabProdutoPorto[PRODUTO],0),5))","v":29},{"$f":"IF(OR($B$4=\"\",ROW()>$F$3),\"\",INDEX(TabTipoProduto[],MATCH($B$4,TabTipoProduto[TIPO PROD],0),1))","v":1},{"$f":"IF(OR(ROW()>$F$3,ISERR(1/TabEntradaDados[[#This Row],[ENTRADA]])),\"\",TabEntradaDados[[#This Row],[ENTRADA]])","v":16.2},{"$f":"IF(OR(ROW()>$F$3,ISERR(1/TabEntradaDados[[#This Row],[SAÍDA ]])),\"\",TabEntradaDados[[#This Row],[SAÍDA ]])","v":12},{"$f":"IF(OR(ROW()>$F$3,ISERR(1/TabEntradaDados[[#This Row],[RETORNO]])),\"\",TabEntradaDados[[#This Row],[RETORNO]])","v":1.2}]
[null,"Fertaction","lt",13.200000000000003,39.6,29.4,3,null,null,null,null,null,null,null,null,null,null,null,null,"2016-06-06",{"$f":"IF(OR($F$3=6,ROW()>$F$3),\"\",IF($A16=\"\",U15,INDEX(TabPorto[],MATCH($A16,TabPorto[PORTO],0),1)))","v":2},{"$f":"IF($B16=\"\",\"\",INDEX(TabProdutoPorto[],MATCH($B16,TabProdutoPorto[PRODUTO],0),5))","v":35},{"$f":"IF(OR($B$4=\"\",ROW()>$F$3),\"\",INDEX(TabTipoProduto[],MATCH($B$4,TabTipoProduto[TIPO PROD],0),1))","v":1},{"$f":"IF(OR(ROW()>$F$3,ISERR(1/TabEntradaDados[[#This Row],[ENTRADA]])),\"\",TabEntradaDados[[#This Row],[ENTRADA]])","v":39.6},{"$f":"IF(OR(ROW()>$F$3,ISERR(1/TabEntradaDados[[#This Row],[SAÍDA ]])),\"\",TabEntradaDados[[#This Row],[SAÍDA ]])","v":29.4},{"$f":"IF(OR(ROW()>$F$3,ISERR(1/TabEntradaDados[[#This Row],[RETORNO]])),\"\",TabEntradaDados[[#This Row],[RETORNO]])","v":3}]
[null,"Fertimino","lt",27,82.8,61.8,6,null,null,null,null,null,null,null,null,null,null,null,null,"2016-06-06",{"$f":"IF(OR($F$3=6,ROW()>$F$3),\"\",IF($A17=\"\",U16,INDEX(TabPorto[],MATCH($A17,TabPorto[PORTO],0),1)))","v":2},{"$f":"IF($B17=\"\",\"\",INDEX(TabProdutoPorto[],MATCH($B17,TabProdutoPorto[PRODUTO],0),5))","v":36},{"$f":"IF(OR($B$4=\"\",ROW()>$F$3),\"\",INDEX(TabTipoProduto[],MATCH($B$4,TabTipoProduto[TIPO PROD],0),1))","v":1},{"$f":"IF(OR(ROW()>$F$3,ISERR(1/TabEntradaDados[[#This Row],[ENTRADA]])),\"\",TabEntradaDados[[#This Row],[ENTRADA]])","v":82.8},{"$f":"IF(OR(ROW()>$F$3,ISERR(1/TabEntradaDados[[#This Row],[SAÍDA ]])),\"\",TabEntradaDados[[#This Row],[SAÍDA ]])","v":61.8},{"$f":"IF(OR(ROW()>$F$3,ISERR(1/TabEntradaDados[[#This Row],[RETORNO]])),\"\",TabEntradaDados[[#This Row],[RETORNO]])","v":6}]
[null,"Finale","lt",35.400000000000006,108,80.399999999999991,7.8,null,null,null,null,null,null,null,null,null,null,null,null,"2016-06-06",{"$f":"IF(OR($F$3=6,ROW()>$F$3),\"\",IF($A18=\"\",U17,INDEX(TabPorto[],MATCH($A18,TabPorto[PORTO],0),1)))","v":2},{"$f":"IF($B18=\"\",\"\",INDEX(TabProdutoPorto[],MATCH($B18,TabProdutoPorto[PRODUTO],0),5))","v":37},{"$f":"IF(OR($B$4=\"\",ROW()>$F$3),\"\",INDEX(TabTipoProduto[],MATCH($B$4,TabTipoProduto[TIPO PROD],0),1))","v":1},{"$f":"IF(OR(ROW()>$F$3,ISERR(1/TabEntradaDados[[#This Row],[ENTRADA]])),\"\",TabEntradaDados[[#This Row],[ENTRADA]])","v":108},{"$f":"IF(OR(ROW()>$F$3,ISERR(1/TabEntradaDados[[#This Row],[SAÍDA ]])),\"\",TabEntradaDados[[#This Row],[SAÍDA ]])","v":80.399999999999991},{"$f":"IF(OR(ROW()>$F$3,ISERR(1/TabEntradaDados[[#This Row],[RETORNO]])),\"\",TabEntradaDados[[#This Row],[RETORNO]])","v":7.8}]
[null,"Flex","lt",3.6,11.4,8.4,0.6,null,null,null,null,null,null,null,null,null,null,null,null,"2016-06-06",{"$f":"IF(OR($F$3=6,ROW()>$F$3),\"\",IF($A19=\"\",U18,INDEX(TabPorto[],MATCH($A19,TabPorto[PORTO],0),1)))","v":2},{"$f":"IF($B19=\"\",\"\",INDEX(TabProdutoPorto[],MATCH($B19,TabProdutoPorto[PRODUTO],0),5))","v":39},{"$f":"IF(OR($B$4=\"\",ROW()>$F$3),\"\",INDEX(TabTipoProduto[],MATCH($B$4,TabTipoProduto[TIPO PROD],0),1))","v":1},{"$f":"IF(OR(ROW()>$F$3,ISERR(1/TabEntradaDados[[#This Row],[ENTRADA]])),\"\",TabEntradaDados[[#This Row],[ENTRADA]])","v":11.4},{"$f":"IF(OR(ROW()>$F$3,ISERR(1/TabEntradaDados[[#This Row],[SAÍDA ]])),\"\",TabEntradaDados[[#This Row],[SAÍDA ]])","v":8.4},{"$f":"IF(OR(ROW()>$F$3,ISERR(1/TabEntradaDados[[#This Row],[RETORNO]])),\"\",TabEntradaDados[[#This Row],[RETORNO]])","v":0.6}]
[null,"Nimbus","lt",6.5999999999999988,20.399999999999999,15,1.2,null,null,null,null,null,null,null,null,null,null,null,null,"2016-06-06",{"$f":"IF(OR($F$3=6,ROW()>$F$3),\"\",IF($A20=\"\",U19,INDEX(TabPorto[],MATCH($A20,TabPorto[PORTO],0),1)))","v":2},{"$f":"IF($B20=\"\",\"\",INDEX(TabProdutoPorto[],MATCH($B20,TabProdutoPorto[PRODUTO],0),5))","v":52},{"$f":"IF(OR($B$4=\"\",ROW()>$F$3),\"\",INDEX(TabTipoProduto[],MATCH($B$4,TabTipoProduto[TIPO PROD],0),1))","v":1},{"$f":"IF(OR(ROW()>$F$3,ISERR(1/TabEntradaDados[[#This Row],[ENTRADA]])),\"\",TabEntradaDados[[#This Row],[ENTRADA]])","v":20.399999999999999},{"$f":"IF(OR(ROW()>$F$3,ISERR(1/TabEntradaDados[[#This Row],[SAÍDA ]])),\"\",TabEntradaDados[[#This Row],[SAÍDA ]])","v":15},{"$f":"IF(OR(ROW()>$F$3,ISERR(1/TabEntradaDados[[#This Row],[RETORNO]])),\"\",TabEntradaDados[[#This Row],[RETORNO]])","v":1.2}]
[null,"Opera Ultra","lt",175.8,531.6,396,40.199999999999996,null,null,null,null,null,null,null,null,null,null,null,null,"2016-06-06",{"$f":"IF(OR($F$3=6,ROW()>$F$3),\"\",IF($A21=\"\",U20,INDEX(TabPorto[],MATCH($A21,TabPorto[PORTO],0),1)))","v":2},{"$f":"IF($B21=\"\",\"\",INDEX(TabProdutoPorto[],MATCH($B21,TabProdutoPorto[PRODUTO],0),5))","v":54},{"$f":"IF(OR($B$4=\"\",ROW()>$F$3),\"\",INDEX(TabTipoProduto[],MATCH($B$4,TabTipoProduto[TIPO PROD],0),1))","v":1},{"$f":"IF(OR(ROW()>$F$3,ISERR(1/TabEntradaDados[[#This Row],[ENTRADA]])),\"\",TabEntradaDados[[#This Row],[ENTRADA]])","v":531.6},{"$f":"IF(OR(ROW()>$F$3,ISERR(1/TabEntradaDados[[#This Row],[SAÍDA ]])),\"\",TabEntradaDados[[#This Row],[SAÍDA ]])","v":396},{"$f":"IF(OR(ROW()>$F$3,ISERR(1/TabEntradaDados[[#This Row],[RETORNO]])),\"\",TabEntradaDados[[#This Row],[RETORNO]])","v":40.199999999999996}]
[null,"Quality","kg",1.1999999999999993,5.3999999999999995,4.2,0,null,null,null,null,null,null,null,null,null,null,null,null,"2016-06-06",{"$f":"IF(OR($F$3=6,ROW()>$F$3),\"\",IF($A22=\"\",U21,INDEX(TabPorto[],MATCH($A22,TabPorto[PORTO],0),1)))","v":2},{"$f":"IF($B22=\"\",\"\",INDEX(TabProdutoPorto[],MATCH($B22,TabProdutoPorto[PRODUTO],0),5))","v":62},{"$f":"IF(OR($B$4=\"\",ROW()>$F$3),\"\",INDEX(TabTipoProduto[],MATCH($B$4,TabTipoProduto[TIPO PROD],0),1))","v":1},{"$f":"IF(OR(ROW()>$F$3,ISERR(1/TabEntradaDados[[#This Row],[ENTRADA]])),\"\",TabEntradaDados[[#This Row],[ENTRADA]])","v":5.3999999999999995},{"$f":"IF(OR(ROW()>$F$3,ISERR(1/TabEntradaDados[[#This Row],[SAÍDA ]])),\"\",TabEntradaDados[[#This Row],[SAÍDA ]])","v":4.2},{"$f":"IF(OR(ROW()>$F$3,ISERR(1/TabEntradaDados[[#This Row],[RETORNO]])),\"\",TabEntradaDados[[#This Row],[RETORNO]])","v":""}]
[null,"Quantis","lt",9.6000000000000014,31.2,23.4,1.7999999999999998,null,null,null,null,null,null,null,null,null,null,null,null,"2016-06-06",{"$f":"IF(OR($F$3=6,ROW()>$F$3),\"\",IF($A23=\"\",U22,INDEX(TabPorto[],MATCH($A23,TabPorto[PORTO],0),1)))","v":2},{"$f":"IF($B23=\"\",\"\",INDEX(TabProdutoPorto[],MATCH($B23,TabProdutoPorto[PRODUTO],0),5))","v":63},{"$f":"IF(OR($B$4=\"\",ROW()>$F$3),\"\",INDEX(TabTipoProduto[],MATCH($B$4,TabTipoProduto[TIPO PROD],0),1))","v":1},{"$f":"IF(OR(ROW()>$F$3,ISERR(1/TabEntradaDados[[#This Row],[ENTRADA]])),\"\",TabEntradaDados[[#This Row],[ENTRADA]])","v":31.2},{"$f":"IF(OR(ROW()>$F$3,ISERR(1/TabEntradaDados[[#This Row],[SAÍDA ]])),\"\",TabEntradaDados[[#This Row],[SAÍDA ]])","v":23.4},{"$f":"IF(OR(ROW()>$F$3,ISERR(1/TabEntradaDados[[#This Row],[RETORNO]])),\"\",TabEntradaDados[[#This Row],[RETORNO]])","v":1.7999999999999998}]
[null,"Start","lt",54,165.6,123.6,12,null,null,null,null,null,null,null,null,null,null,null,null,"2016-06-06",{"$f":"IF(OR($F$3=6,ROW()>$F$3),\"\",IF($A24=\"\",U23,INDEX(TabPorto[],MATCH($A24,TabPorto[PORTO],0),1)))","v":2},{"$f":"IF($B24=\"\",\"\",INDEX(TabProdutoPorto[],MATCH($B24,TabProdutoPorto[PRODUTO],0),5))","v":69},{"$f":"IF(OR($B$4=\"\",ROW()>$F$3),\"\",INDEX(TabTipoProduto[],MATCH($B$4,TabTipoProduto[TIPO PROD],0),1))","v":1},{"$f":"IF(OR(ROW()>$F$3,ISERR(1/TabEntradaDados[[#This Row],[ENTRADA]])),\"\",TabEntradaDados[[#This Row],[ENTRADA]])","v":165.6},{"$f":"IF(OR(ROW()>$F$3,ISERR(1/TabEntradaDados[[#This Row],[SAÍDA ]])),\"\",TabEntradaDados[[#This Row],[SAÍDA ]])","v":123.6},{"$f":"IF(OR(ROW()>$F$3,ISERR(1/TabEntradaDados[[#This Row],[RETORNO]])),\"\",TabEntradaDados[[#This Row],[RETORNO]])","v":12}]
[null,"Tocha","lt",42.6,129.6,96.6,9.6,null,null,null,null,null,null,null,null,null,null,null,null,"2016-06-06",{"$f":"IF(OR($F$3=6,ROW()>$F$3),\"\",IF($A25=\"\",U24,INDEX(TabPorto[],MATCH($A25,TabPorto[PORTO],0),1)))","v":2},{"$f":"IF($B25=\"\",\"\",INDEX(TabProdutoPorto[],MATCH($B25,TabProdutoPorto[PRODUTO],0),5))","v":72},{"$f":"IF(OR($B$4=\"\",ROW()>$F$3),\"\",INDEX(TabTipoProduto[],MATCH($B$4,TabTipoProduto[TIPO PROD],0),1))","v":1},{"$f":"IF(OR(ROW()>$F$3,ISERR(1/TabEntradaDados[[#This Row],[ENTRADA]])),\"\",TabEntradaDados[[#This Row],[ENTRADA]])","v":129.6},{"$f":"IF(OR(ROW()>$F$3,ISERR(1/TabEntradaDados[[#This Row],[SAÍDA ]])),\"\",TabEntradaDados[[#This Row],[SAÍDA ]])","v":96.6},{"$f":"IF(OR(ROW()>$F$3,ISERR(1/TabEntradaDados[[#This Row],[RETORNO]])),\"\",TabEntradaDados[[#This Row],[RETORNO]])","v":9.6}]
[null,"Zapp","lt",16.799999999999997,49.8,36.6,3.5999999999999996,null,null,null,null,null,null,null,null,null,null,null,null,"2016-06-06",{"$f":"IF(OR($F$3=6,ROW()>$F$3),\"\",IF($A26=\"\",U25,INDEX(TabPorto[],MATCH($A26,TabPorto[PORTO],0),1)))","v":2},{"$f":"IF($B26=\"\",\"\",INDEX(TabProdutoPorto[],MATCH($B26,TabProdutoPorto[PRODUTO],0),5))","v":75},{"$f":"IF(OR($B$4=\"\",ROW()>$F$3),\"\",INDEX(TabTipoProduto[],MATCH($B$4,TabTipoProduto[TIPO PROD],0),1))","v":1},{"$f":"IF(OR(ROW()>$F$3,ISERR(1/TabEntradaDados[[#This Row],[ENTRADA]])),\"\",TabEntradaDados[[#This Row],[ENTRADA]])","v":49.8},{"$f":"IF(OR(ROW()>$F$3,ISERR(1/TabEntradaDados[[#This Row],[SAÍDA ]])),\"\",TabEntradaDados[[#This Row],[SAÍDA ]])","v":36.6},{"$f":"IF(OR(ROW()>$F$3,ISERR(1/TabEntradaDados[[#This Row],[RETORNO]])),\"\",TabEntradaDados[[#This Row],[RETORNO]])","v":3.5999999999999996}]
[null,null,null,null,null,null,null,null,null,null,null,null,null,null,null,null,null,null,null,"",{"$f":"IF(OR($F$3=6,ROW()>$F$3),\"\",IF($A27=\"\",U26,INDEX(TabPorto[],MATCH($A27,TabPorto[PORTO],0),1)))","v":""},{"$f":"IF($B27=\"\",\"\",INDEX(TabProdutoPorto[],MATCH($B27,TabProdutoPorto[PRODUTO],0),5))","v":""},{"$f":"IF(OR($B$4=\"\",ROW()>$F$3),\"\",INDEX(TabTipoProduto[],MATCH($B$4,TabTipoProduto[TIPO PROD],0),1))","v":""},{"$f":"IF(OR(ROW()>$F$3,ISERR(1/TabEntradaDados[[#This Row],[ENTRADA]])),\"\",TabEntradaDados[[#This Row],[ENTRADA]])","v":""},{"$f":"IF(OR(ROW()>$F$3,ISERR(1/TabEntradaDados[[#This Row],[SAÍDA ]])),\"\",TabEntradaDados[[#This Row],[SAÍDA ]])","v":""},{"$f":"IF(OR(ROW()>$F$3,ISERR(1/TabEntradaDados[[#This Row],[RETORNO]])),\"\",TabEntradaDados[[#This Row],[RETORNO]])","v":""}]
[null,null,null,null,null,null,null,null,null,null,null,null,null,null,null,null,null,null,null,"",{"$f":"IF(OR($F$3=6,ROW()>$F$3),\"\",IF($A28=\"\",U27,INDEX(TabPorto[],MATCH($A28,TabPorto[PORTO],0),1)))","v":""},{"$f":"IF($B28=\"\",\"\",INDEX(TabProdutoPorto[],MATCH($B28,TabProdutoPorto[PRODUTO],0),5))","v":""},{"$f":"IF(OR($B$4=\"\",ROW()>$F$3),\"\",INDEX(TabTipoProduto[],MATCH($B$4,TabTipoProduto[TIPO PROD],0),1))","v":""},{"$f":"IF(OR(ROW()>$F$3,ISERR(1/TabEntradaDados[[#This Row],[ENTRADA]])),\"\",TabEntradaDados[[#This Row],[ENTRADA]])","v":""},{"$f":"IF(OR(ROW()>$F$3,ISERR(1/TabEntradaDados[[#This Row],[SAÍDA ]])),\"\",TabEntradaDados[[#This Row],[SAÍDA ]])","v":""},{"$f":"IF(OR(ROW()>$F$3,ISERR(1/TabEntradaDados[[#This Row],[RETORNO]])),\"\",TabEntradaDados[[#This Row],[RETORNO]])","v":""}]
[null,null,null,null,null,null,null,null,null,null,null,null,null,null,null,null,null,null,null,"",{"$f":"IF(OR($F$3=6,ROW()>$F$3),\"\",IF($A29=\"\",U28,INDEX(TabPorto[],MATCH($A29,TabPorto[PORTO],0),1)))","v":""},{"$f":"IF($B29=\"\",\"\",INDEX(TabProdutoPorto[],MATCH($B29,TabProdutoPorto[PRODUTO],0),5))","v":""},{"$f":"IF(OR($B$4=\"\",ROW()>$F$3),\"\",INDEX(TabTipoProduto[],MATCH($B$4,TabTipoProduto[TIPO PROD],0),1))","v":""},{"$f":"IF(OR(ROW()>$F$3,ISERR(1/TabEntradaDados[[#This Row],[ENTRADA]])),\"\",TabEntradaDados[[#This Row],[ENTRADA]])","v":""},{"$f":"IF(OR(ROW()>$F$3,ISERR(1/TabEntradaDados[[#This Row],[SAÍDA ]])),\"\",TabEntradaDados[[#This Row],[SAÍDA ]])","v":""},{"$f":"IF(OR(ROW()>$F$3,ISERR(1/TabEntradaDados[[#This Row],[RETORNO]])),\"\",TabEntradaDados[[#This Row],[RETORNO]])","v":""}]
[null,null,null,null,null,null,null,null,null,null,null,null,null,null,null,null,null,null,null,"",{"$f":"IF(OR($F$3=6,ROW()>$F$3),\"\",IF($A30=\"\",U29,INDEX(TabPorto[],MATCH($A30,TabPorto[PORTO],0),1)))","v":""},{"$f":"IF($B30=\"\",\"\",INDEX(TabProdutoPorto[],MATCH($B30,TabProdutoPorto[PRODUTO],0),5))","v":""},{"$f":"IF(OR($B$4=\"\",ROW()>$F$3),\"\",INDEX(TabTipoProduto[],MATCH($B$4,TabTipoProduto[TIPO PROD],0),1))","v":""},{"$f":"IF(OR(ROW()>$F$3,ISERR(1/TabEntradaDados[[#This Row],[ENTRADA]])),\"\",TabEntradaDados[[#This Row],[ENTRADA]])","v":""},{"$f":"IF(OR(ROW()>$F$3,ISERR(1/TabEntradaDados[[#This Row],[SAÍDA ]])),\"\",TabEntradaDados[[#This Row],[SAÍDA ]])","v":""},{"$f":"IF(OR(ROW()>$F$3,ISERR(1/TabEntradaDados[[#This Row],[RETORNO]])),\"\",TabEntradaDados[[#This Row],[RETORNO]])","v":""}]
[null,null,null,null,null,null,null,null,null,null,null,null,null,null,null,null,null,null,null,"",{"$f":"IF(OR($F$3=6,ROW()>$F$3),\"\",IF($A31=\"\",U30,INDEX(TabPorto[],MATCH($A31,TabPorto[PORTO],0),1)))","v":""},{"$f":"IF($B31=\"\",\"\",INDEX(TabProdutoPorto[],MATCH($B31,TabProdutoPorto[PRODUTO],0),5))","v":""},{"$f":"IF(OR($B$4=\"\",ROW()>$F$3),\"\",INDEX(TabTipoProduto[],MATCH($B$4,TabTipoProduto[TIPO PROD],0),1))","v":""},{"$f":"IF(OR(ROW()>$F$3,ISERR(1/TabEntradaDados[[#This Row],[ENTRADA]])),\"\",TabEntradaDados[[#This Row],[ENTRADA]])","v":""},{"$f":"IF(OR(ROW()>$F$3,ISERR(1/TabEntradaDados[[#This Row],[SAÍDA ]])),\"\",TabEntradaDados[[#This Row],[SAÍDA ]])","v":""},{"$f":"IF(OR(ROW()>$F$3,ISERR(1/TabEntradaDados[[#This Row],[RETORNO]])),\"\",TabEntradaDados[[#This Row],[RETORNO]])","v":""}]
[null,null,null,null,null,null,null,null,null,null,null,null,null,null,null,null,null,null,null,"",{"$f":"IF(OR($F$3=6,ROW()>$F$3),\"\",IF($A32=\"\",U31,INDEX(TabPorto[],MATCH($A32,TabPorto[PORTO],0),1)))","v":""},{"$f":"IF($B32=\"\",\"\",INDEX(TabProdutoPorto[],MATCH($B32,TabProdutoPorto[PRODUTO],0),5))","v":""},{"$f":"IF(OR($B$4=\"\",ROW()>$F$3),\"\",INDEX(TabTipoProduto[],MATCH($B$4,TabTipoProduto[TIPO PROD],0),1))","v":""},{"$f":"IF(OR(ROW()>$F$3,ISERR(1/TabEntradaDados[[#This Row],[ENTRADA]])),\"\",TabEntradaDados[[#This Row],[ENTRADA]])","v":""},{"$f":"IF(OR(ROW()>$F$3,ISERR(1/TabEntradaDados[[#This Row],[SAÍDA ]])),\"\",TabEntradaDados[[#This Row],[SAÍDA ]])","v":""},{"$f":"IF(OR(ROW()>$F$3,ISERR(1/TabEntradaDados[[#This Row],[RETORNO]])),\"\",TabEntradaDados[[#This Row],[RETORNO]])","v":""}]
[null,null,null,null,null,null,null,null,null,null,null,null,null,null,null,null,null,null,null,"",{"$f":"IF(OR($F$3=6,ROW()>$F$3),\"\",IF($A33=\"\",U32,INDEX(TabPorto[],MATCH($A33,TabPorto[PORTO],0),1)))","v":""},{"$f":"IF($B33=\"\",\"\",INDEX(TabProdutoPorto[],MATCH($B33,TabProdutoPorto[PRODUTO],0),5))","v":""},{"$f":"IF(OR($B$4=\"\",ROW()>$F$3),\"\",INDEX(TabTipoProduto[],MATCH($B$4,TabTipoProduto[TIPO PROD],0),1))","v":""},{"$f":"IF(OR(ROW()>$F$3,ISERR(1/TabEntradaDados[[#This Row],[ENTRADA]])),\"\",TabEntradaDados[[#This Row],[ENTRADA]])","v":""},{"$f":"IF(OR(ROW()>$F$3,ISERR(1/TabEntradaDados[[#This Row],[SAÍDA ]])),\"\",TabEntradaDados[[#This Row],[SAÍDA ]])","v":""},{"$f":"IF(OR(ROW()>$F$3,ISERR(1/TabEntradaDados[[#This Row],[RETORNO]])),\"\",TabEntradaDados[[#This Row],[RETORNO]])","v":""}]
[null,null,null,null,null,null,null,null,null,null,null,null,null,null,null,null,null,null,null,"",{"$f":"IF(OR($F$3=6,ROW()>$F$3),\"\",IF($A34=\"\",U33,INDEX(TabPorto[],MATCH($A34,TabPorto[PORTO],0),1)))","v":""},{"$f":"IF($B34=\"\",\"\",INDEX(TabProdutoPorto[],MATCH($B34,TabProdutoPorto[PRODUTO],0),5))","v":""},{"$f":"IF(OR($B$4=\"\",ROW()>$F$3),\"\",INDEX(TabTipoProduto[],MATCH($B$4,TabTipoProduto[TIPO PROD],0),1))","v":""},{"$f":"IF(OR(ROW()>$F$3,ISERR(1/TabEntradaDados[[#This Row],[ENTRADA]])),\"\",TabEntradaDados[[#This Row],[ENTRADA]])","v":""},{"$f":"IF(OR(ROW()>$F$3,ISERR(1/TabEntradaDados[[#This Row],[SAÍDA ]])),\"\",TabEntradaDados[[#This Row],[SAÍDA ]])","v":""},{"$f":"IF(OR(ROW()>$F$3,ISERR(1/TabEntradaDados[[#This Row],[RETORNO]])),\"\",TabEntradaDados[[#This Row],[RETORNO]])","v":""}]
[null,null,null,null,null,null,null,null,null,null,null,null,null,null,null,null,null,null,null,"",{"$f":"IF(OR($F$3=6,ROW()>$F$3),\"\",IF($A35=\"\",U34,INDEX(TabPorto[],MATCH($A35,TabPorto[PORTO],0),1)))","v":""},{"$f":"IF($B35=\"\",\"\",INDEX(TabProdutoPorto[],MATCH($B35,TabProdutoPorto[PRODUTO],0),5))","v":""},{"$f":"IF(OR($B$4=\"\",ROW()>$F$3),\"\",INDEX(TabTipoProduto[],MATCH($B$4,TabTipoProduto[TIPO PROD],0),1))","v":""},{"$f":"IF(OR(ROW()>$F$3,ISERR(1/TabEntradaDados[[#This Row],[ENTRADA]])),\"\",TabEntradaDados[[#This Row],[ENTRADA]])","v":""},{"$f":"IF(OR(ROW()>$F$3,ISERR(1/TabEntradaDados[[#This Row],[SAÍDA ]])),\"\",TabEntradaDados[[#This Row],[SAÍDA ]])","v":""},{"$f":"IF(OR(ROW()>$F$3,ISERR(1/TabEntradaDados[[#This Row],[RETORNO]])),\"\",TabEntradaDados[[#This Row],[RETORNO]])","v":""}]
[null,null,null,null,null,null,null,null,null,null,null,null,null,null,null,null,null,null,null,"",{"$f":"IF(OR($F$3=6,ROW()>$F$3),\"\",IF($A36=\"\",U35,INDEX(TabPorto[],MATCH($A36,TabPorto[PORTO],0),1)))","v":""},{"$f":"IF($B36=\"\",\"\",INDEX(TabProdutoPorto[],MATCH($B36,TabProdutoPorto[PRODUTO],0),5))","v":""},{"$f":"IF(OR($B$4=\"\",ROW()>$F$3),\"\",INDEX(TabTipoProduto[],MATCH($B$4,TabTipoProduto[TIPO PROD],0),1))","v":""},{"$f":"IF(OR(ROW()>$F$3,ISERR(1/TabEntradaDados[[#This Row],[ENTRADA]])),\"\",TabEntradaDados[[#This Row],[ENTRADA]])","v":""},{"$f":"IF(OR(ROW()>$F$3,ISERR(1/TabEntradaDados[[#This Row],[SAÍDA ]])),\"\",TabEntradaDados[[#This Row],[SAÍDA ]])","v":""},{"$f":"IF(OR(ROW()>$F$3,ISERR(1/TabEntradaDados[[#This Row],[RETORNO]])),\"\",TabEntradaDados[[#This Row],[RETORNO]])","v":""}]
[null,null,null,null,null,null,null,null,null,null,null,null,null,null,null,null,null,null,null,"",{"$f":"IF(OR($F$3=6,ROW()>$F$3),\"\",IF($A37=\"\",U36,INDEX(TabPorto[],MATCH($A37,TabPorto[PORTO],0),1)))","v":""},{"$f":"IF($B37=\"\",\"\",INDEX(TabProdutoPorto[],MATCH($B37,TabProdutoPorto[PRODUTO],0),5))","v":""},{"$f":"IF(OR($B$4=\"\",ROW()>$F$3),\"\",INDEX(TabTipoProduto[],MATCH($B$4,TabTipoProduto[TIPO PROD],0),1))","v":""},{"$f":"IF(OR(ROW()>$F$3,ISERR(1/TabEntradaDados[[#This Row],[ENTRADA]])),\"\",TabEntradaDados[[#This Row],[ENTRADA]])","v":""},{"$f":"IF(OR(ROW()>$F$3,ISERR(1/TabEntradaDados[[#This Row],[SAÍDA ]])),\"\",TabEntradaDados[[#This Row],[SAÍDA ]])","v":""},{"$f":"IF(OR(ROW()>$F$3,ISERR(1/TabEntradaDados[[#This Row],[RETORNO]])),\"\",TabEntradaDados[[#This Row],[RETORNO]])","v":""}]
[null,null,null,null,null,null,null,null,null,null,null,null,null,null,null,null,null,null,null,"",{"$f":"IF(OR($F$3=6,ROW()>$F$3),\"\",IF($A38=\"\",U37,INDEX(TabPorto[],MATCH($A38,TabPorto[PORTO],0),1)))","v":""},{"$f":"IF($B38=\"\",\"\",INDEX(TabProdutoPorto[],MATCH($B38,TabProdutoPorto[PRODUTO],0),5))","v":""},{"$f":"IF(OR($B$4=\"\",ROW()>$F$3),\"\",INDEX(TabTipoProduto[],MATCH($B$4,TabTipoProduto[TIPO PROD],0),1))","v":""},{"$f":"IF(OR(ROW()>$F$3,ISERR(1/TabEntradaDados[[#This Row],[ENTRADA]])),\"\",TabEntradaDados[[#This Row],[ENTRADA]])","v":""},{"$f":"IF(OR(ROW()>$F$3,ISERR(1/TabEntradaDados[[#This Row],[SAÍDA ]])),\"\",TabEntradaDados[[#This Row],[SAÍDA ]])","v":""},{"$f":"IF(OR(ROW()>$F$3,ISERR(1/TabEntradaDados[[#This Row],[RETORNO]])),\"\",TabEntradaDados[[#This Row],[RETORNO]])","v":""}]
[null,null,null,null,null,null,null,null,null,null,null,null,null,null,null,null,null,null,null,"",{"$f":"IF(OR($F$3=6,ROW()>$F$3),\"\",IF($A39=\"\",U38,INDEX(TabPorto[],MATCH($A39,TabPorto[PORTO],0),1)))","v":""},{"$f":"IF($B39=\"\",\"\",INDEX(TabProdutoPorto[],MATCH($B39,TabProdutoPorto[PRODUTO],0),5))","v":""},{"$f":"IF(OR($B$4=\"\",ROW()>$F$3),\"\",INDEX(TabTipoProduto[],MATCH($B$4,TabTipoProduto[TIPO PROD],0),1))","v":""},{"$f":"IF(OR(ROW()>$F$3,ISERR(1/TabEntradaDados[[#This Row],[ENTRADA]])),\"\",TabEntradaDados[[#This Row],[ENTRADA]])","v":""},{"$f":"IF(OR(ROW()>$F$3,ISERR(1/TabEntradaDados[[#This Row],[SAÍDA ]])),\"\",TabEntradaDados[[#This Row],[SAÍDA ]])","v":""},{"$f":"IF(OR(ROW()>$F$3,ISERR(1/TabEntradaDados[[#This Row],[RETORNO]])),\"\",TabEntradaDados[[#This Row],[RETORNO]])","v":""}]
[null,null,null,null,null,null,null,null,null,null,null,null,null,null,null,null,null,null,null,"",{"$f":"IF(OR($F$3=6,ROW()>$F$3),\"\",IF($A40=\"\",U39,INDEX(TabPorto[],MATCH($A40,TabPorto[PORTO],0),1)))","v":""},{"$f":"IF($B40=\"\",\"\",INDEX(TabProdutoPorto[],MATCH($B40,TabProdutoPorto[PRODUTO],0),5))","v":""},{"$f":"IF(OR($B$4=\"\",ROW()>$F$3),\"\",INDEX(TabTipoProduto[],MATCH($B$4,TabTipoProduto[TIPO PROD],0),1))","v":""},{"$f":"IF(OR(ROW()>$F$3,ISERR(1/TabEntradaDados[[#This Row],[ENTRADA]])),\"\",TabEntradaDados[[#This Row],[ENTRADA]])","v":""},{"$f":"IF(OR(ROW()>$F$3,ISERR(1/TabEntradaDados[[#This Row],[SAÍDA ]])),\"\",TabEntradaDados[[#This Row],[SAÍDA ]])","v":""},{"$f":"IF(OR(ROW()>$F$3,ISERR(1/TabEntradaDados[[#This Row],[RETORNO]])),\"\",TabEntradaDados[[#This Row],[RETORNO]])","v":""}]
[null,null,null,null,null,null,null,null,null,null,null,null,null,null,null,null,null,null,null,"",{"$f":"IF(OR($F$3=6,ROW()>$F$3),\"\",IF($A41=\"\",U40,INDEX(TabPorto[],MATCH($A41,TabPorto[PORTO],0),1)))","v":""},{"$f":"IF($B41=\"\",\"\",INDEX(TabProdutoPorto[],MATCH($B41,TabProdutoPorto[PRODUTO],0),5))","v":""},{"$f":"IF(OR($B$4=\"\",ROW()>$F$3),\"\",INDEX(TabTipoProduto[],MATCH($B$4,TabTipoProduto[TIPO PROD],0),1))","v":""},{"$f":"IF(OR(ROW()>$F$3,ISERR(1/TabEntradaDados[[#This Row],[ENTRADA]])),\"\",TabEntradaDados[[#This Row],[ENTRADA]])","v":""},{"$f":"IF(OR(ROW()>$F$3,ISERR(1/TabEntradaDados[[#This Row],[SAÍDA ]])),\"\",TabEntradaDados[[#This Row],[SAÍDA ]])","v":""},{"$f":"IF(OR(ROW()>$F$3,ISERR(1/TabEntradaDados[[#This Row],[RETORNO]])),\"\",TabEntradaDados[[#This Row],[RETORNO]])","v":""}]
[null,null,null,null,null,null,null,null,null,null,null,null,null,null,null,null,null,null,null,"",{"$f":"IF(OR($F$3=6,ROW()>$F$3),\"\",IF($A42=\"\",U41,INDEX(TabPorto[],MATCH($A42,TabPorto[PORTO],0),1)))","v":""},{"$f":"IF($B42=\"\",\"\",INDEX(TabProdutoPorto[],MATCH($B42,TabProdutoPorto[PRODUTO],0),5))","v":""},{"$f":"IF(OR($B$4=\"\",ROW()>$F$3),\"\",INDEX(TabTipoProduto[],MATCH($B$4,TabTipoProduto[TIPO PROD],0),1))","v":""},{"$f":"IF(OR(ROW()>$F$3,ISERR(1/TabEntradaDados[[#This Row],[ENTRADA]])),\"\",TabEntradaDados[[#This Row],[ENTRADA]])","v":""},{"$f":"IF(OR(ROW()>$F$3,ISERR(1/TabEntradaDados[[#This Row],[SAÍDA ]])),\"\",TabEntradaDados[[#This Row],[SAÍDA ]])","v":""},{"$f":"IF(OR(ROW()>$F$3,ISERR(1/TabEntradaDados[[#This Row],[RETORNO]])),\"\",TabEntradaDados[[#This Row],[RETORNO]])","v":""}]
[null,null,null,null,null,null,null,null,null,null,null,null,null,null,null,null,null,null,null,"",{"$f":"IF(OR($F$3=6,ROW()>$F$3),\"\",IF($A43=\"\",U42,INDEX(TabPorto[],MATCH($A43,TabPorto[PORTO],0),1)))","v":""},{"$f":"IF($B43=\"\",\"\",INDEX(TabProdutoPorto[],MATCH($B43,TabProdutoPorto[PRODUTO],0),5))","v":""},{"$f":"IF(OR($B$4=\"\",ROW()>$F$3),\"\",INDEX(TabTipoProduto[],MATCH($B$4,TabTipoProduto[TIPO PROD],0),1))","v":""},{"$f":"IF(OR(ROW()>$F$3,ISERR(1/TabEntradaDados[[#This Row],[ENTRADA]])),\"\",TabEntradaDados[[#This Row],[ENTRADA]])","v":""},{"$f":"IF(OR(ROW()>$F$3,ISERR(1/TabEntradaDados[[#This Row],[SAÍDA ]])),\"\",TabEntradaDados[[#This Row],[SAÍDA ]])","v":""},{"$f":"IF(OR(ROW()>$F$3,ISERR(1/TabEntradaDados[[#This Row],[RETORNO]])),\"\",TabEntradaDados[[#This Row],[RETORNO]])","v":""}]
[null,null,null,null,null,null,null,null,null,null,null,null,null,null,null,null,null,null,null,"",{"$f":"IF(OR($F$3=6,ROW()>$F$3),\"\",IF($A44=\"\",U43,INDEX(TabPorto[],MATCH($A44,TabPorto[PORTO],0),1)))","v":""},{"$f":"IF($B44=\"\",\"\",INDEX(TabProdutoPorto[],MATCH($B44,TabProdutoPorto[PRODUTO],0),5))","v":""},{"$f":"IF(OR($B$4=\"\",ROW()>$F$3),\"\",INDEX(TabTipoProduto[],MATCH($B$4,TabTipoProduto[TIPO PROD],0),1))","v":""},{"$f":"IF(OR(ROW()>$F$3,ISERR(1/TabEntradaDados[[#This Row],[ENTRADA]])),\"\",TabEntradaDados[[#This Row],[ENTRADA]])","v":""},{"$f":"IF(OR(ROW()>$F$3,ISERR(1/TabEntradaDados[[#This Row],[SAÍDA ]])),\"\",TabEntradaDados[[#This Row],[SAÍDA ]])","v":""},{"$f":"IF(OR(ROW()>$F$3,ISERR(1/TabEntradaDados[[#This Row],[RETORNO]])),\"\",TabEntradaDados[[#This Row],[RETORNO]])","v":""}]
[null,null,null,null,null,null,null,null,null,null,null,null,null,null,null,null,null,null,null,"",{"$f":"IF(OR($F$3=6,ROW()>$F$3),\"\",IF($A45=\"\",U44,INDEX(TabPorto[],MATCH($A45,TabPorto[PORTO],0),1)))","v":""},{"$f":"IF($B45=\"\",\"\",INDEX(TabProdutoPorto[],MATCH($B45,TabProdutoPorto[PRODUTO],0),5))","v":""},{"$f":"IF(OR($B$4=\"\",ROW()>$F$3),\"\",INDEX(TabTipoProduto[],MATCH($B$4,TabTipoProduto[TIPO PROD],0),1))","v":""},{"$f":"IF(OR(ROW()>$F$3,ISERR(1/TabEntradaDados[[#This Row],[ENTRADA]])),\"\",TabEntradaDados[[#This Row],[ENTRADA]])","v":""},{"$f":"IF(OR(ROW()>$F$3,ISERR(1/TabEntradaDados[[#This Row],[SAÍDA ]])),\"\",TabEntradaDados[[#This Row],[SAÍDA ]])","v":""},{"$f":"IF(OR(ROW()>$F$3,ISERR(1/TabEntradaDados[[#This Row],[RETORNO]])),\"\",TabEntradaDados[[#This Row],[RETORNO]])","v":""}]
[null,null,null,null,null,null,null,null,null,null,null,null,null,null,null,null,null,null,null,"",{"$f":"IF(OR($F$3=6,ROW()>$F$3),\"\",IF($A46=\"\",U45,INDEX(TabPorto[],MATCH($A46,TabPorto[PORTO],0),1)))","v":""},{"$f":"IF($B46=\"\",\"\",INDEX(TabProdutoPorto[],MATCH($B46,TabProdutoPorto[PRODUTO],0),5))","v":""},{"$f":"IF(OR($B$4=\"\",ROW()>$F$3),\"\",INDEX(TabTipoProduto[],MATCH($B$4,TabTipoProduto[TIPO PROD],0),1))","v":""},{"$f":"IF(OR(ROW()>$F$3,ISERR(1/TabEntradaDados[[#This Row],[ENTRADA]])),\"\",TabEntradaDados[[#This Row],[ENTRADA]])","v":""},{"$f":"IF(OR(ROW()>$F$3,ISERR(1/TabEntradaDados[[#This Row],[SAÍDA ]])),\"\",TabEntradaDados[[#This Row],[SAÍDA ]])","v":""},{"$f":"IF(OR(ROW()>$F$3,ISERR(1/TabEntradaDados[[#This Row],[RETORNO]])),\"\",TabEntradaDados[[#This Row],[RETORNO]])","v":""}]
[null,null,null,null,null,null,null,null,null,null,null,null,null,null,null,null,null,null,null,"",{"$f":"IF(OR($F$3=6,ROW()>$F$3),\"\",IF($A47=\"\",U46,INDEX(TabPorto[],MATCH($A47,TabPorto[PORTO],0),1)))","v":""},{"$f":"IF($B47=\"\",\"\",INDEX(TabProdutoPorto[],MATCH($B47,TabProdutoPorto[PRODUTO],0),5))","v":""},{"$f":"IF(OR($B$4=\"\",ROW()>$F$3),\"\",INDEX(TabTipoProduto[],MATCH($B$4,TabTipoProduto[TIPO PROD],0),1))","v":""},{"$f":"IF(OR(ROW()>$F$3,ISERR(1/TabEntradaDados[[#This Row],[ENTRADA]])),\"\",TabEntradaDados[[#This Row],[ENTRADA]])","v":""},{"$f":"IF(OR(ROW()>$F$3,ISERR(1/TabEntradaDados[[#This Row],[SAÍDA ]])),\"\",TabEntradaDados[[#This Row],[SAÍDA ]])","v":""},{"$f":"IF(OR(ROW()>$F$3,ISERR(1/TabEntradaDados[[#This Row],[RETORNO]])),\"\",TabEntradaDados[[#This Row],[RETORNO]])","v":""}]
[null,null,null,null,null,null,null,null,null,null,null,null,null,null,null,null,null,null,null,"",{"$f":"IF(OR($F$3=6,ROW()>$F$3),\"\",IF($A48=\"\",U47,INDEX(TabPorto[],MATCH($A48,TabPorto[PORTO],0),1)))","v":""},{"$f":"IF($B48=\"\",\"\",INDEX(TabProdutoPorto[],MATCH($B48,TabProdutoPorto[PRODUTO],0),5))","v":""},{"$f":"IF(OR($B$4=\"\",ROW()>$F$3),\"\",INDEX(TabTipoProduto[],MATCH($B$4,TabTipoProduto[TIPO PROD],0),1))","v":""},{"$f":"IF(OR(ROW()>$F$3,ISERR(1/TabEntradaDados[[#This Row],[ENTRADA]])),\"\",TabEntradaDados[[#This Row],[ENTRADA]])","v":""},{"$f":"IF(OR(ROW()>$F$3,ISERR(1/TabEntradaDados[[#This Row],[SAÍDA ]])),\"\",TabEntradaDados[[#This Row],[SAÍDA ]])","v":""},{"$f":"IF(OR(ROW()>$F$3,ISERR(1/TabEntradaDados[[#This Row],[RETORNO]])),\"\",TabEntradaDados[[#This Row],[RETORNO]])","v":""}]
[null,null,null,null,null,null,null,null,null,null,null,null,null,null,null,null,null,null,null,"",{"$f":"IF(OR($F$3=6,ROW()>$F$3),\"\",IF($A49=\"\",U48,INDEX(TabPorto[],MATCH($A49,TabPorto[PORTO],0),1)))","v":""},{"$f":"IF($B49=\"\",\"\",INDEX(TabProdutoPorto[],MATCH($B49,TabProdutoPorto[PRODUTO],0),5))","v":""},{"$f":"IF(OR($B$4=\"\",ROW()>$F$3),\"\",INDEX(TabTipoProduto[],MATCH($B$4,TabTipoProduto[TIPO PROD],0),1))","v":""},{"$f":"IF(OR(ROW()>$F$3,ISERR(1/TabEntradaDados[[#This Row],[ENTRADA]])),\"\",TabEntradaDados[[#This Row],[ENTRADA]])","v":""},{"$f":"IF(OR(ROW()>$F$3,ISERR(1/TabEntradaDados[[#This Row],[SAÍDA ]])),\"\",TabEntradaDados[[#This Row],[SAÍDA ]])","v":""},{"$f":"IF(OR(ROW()>$F$3,ISERR(1/TabEntradaDados[[#This Row],[RETORNO]])),\"\",TabEntradaDados[[#This Row],[RETORNO]])","v":""}]
[null,null,null,null,null,null,null,null,null,null,null,null,null,null,null,null,null,null,null,"",{"$f":"IF(OR($F$3=6,ROW()>$F$3),\"\",IF($A50=\"\",U49,INDEX(TabPorto[],MATCH($A50,TabPorto[PORTO],0),1)))","v":""},{"$f":"IF($B50=\"\",\"\",INDEX(TabProdutoPorto[],MATCH($B50,TabProdutoPorto[PRODUTO],0),5))","v":""},{"$f":"IF(OR($B$4=\"\",ROW()>$F$3),\"\",INDEX(TabTipoProduto[],MATCH($B$4,TabTipoProduto[TIPO PROD],0),1))","v":""},{"$f":"IF(OR(ROW()>$F$3,ISERR(1/TabEntradaDados[[#This Row],[ENTRADA]])),\"\",TabEntradaDados[[#This Row],[ENTRADA]])","v":""},{"$f":"IF(OR(ROW()>$F$3,ISERR(1/TabEntradaDados[[#This Row],[SAÍDA ]])),\"\",TabEntradaDados[[#This Row],[SAÍDA ]])","v":""},{"$f":"IF(OR(ROW()>$F$3,ISERR(1/TabEntradaDados[[#This Row],[RETORNO]])),\"\",TabEntradaDados[[#This Row],[RETORNO]])","v":""}]
[null,null,null,null,null,null,null,null,null,null,null,null,null,null,null,null,null,null,null,"",{"$f":"IF(OR($F$3=6,ROW()>$F$3),\"\",IF($A51=\"\",U50,INDEX(TabPorto[],MATCH($A51,TabPorto[PORTO],0),1)))","v":""},{"$f":"IF($B51=\"\",\"\",INDEX(TabProdutoPorto[],MATCH($B51,TabProdutoPorto[PRODUTO],0),5))","v":""},{"$f":"IF(OR($B$4=\"\",ROW()>$F$3),\"\",INDEX(TabTipoProduto[],MATCH($B$4,TabTipoProduto[TIPO PROD],0),1))","v":""},{"$f":"IF(OR(ROW()>$F$3,ISERR(1/TabEntradaDados[[#This Row],[ENTRADA]])),\"\",TabEntradaDados[[#This Row],[ENTRADA]])","v":""},{"$f":"IF(OR(ROW()>$F$3,ISERR(1/TabEntradaDados[[#This Row],[SAÍDA ]])),\"\",TabEntradaDados[[#This Row],[SAÍDA ]])","v":""},{"$f":"IF(OR(ROW()>$F$3,ISERR(1/TabEntradaDados[[#This Row],[RETORNO]])),\"\",TabEntradaDados[[#This Row],[RETORNO]])","v":""}]
[null,null,null,null,null,null,null,null,null,null,null,null,null,null,null,null,null,null,null,"",{"$f":"IF(OR($F$3=6,ROW()>$F$3),\"\",IF($A52=\"\",U51,INDEX(TabPorto[],MATCH($A52,TabPorto[PORTO],0),1)))","v":""},{"$f":"IF($B52=\"\",\"\",INDEX(TabProdutoPorto[],MATCH($B52,TabProdutoPorto[PRODUTO],0),5))","v":""},{"$f":"IF(OR($B$4=\"\",ROW()>$F$3),\"\",INDEX(TabTipoProduto[],MATCH($B$4,TabTipoProduto[TIPO PROD],0),1))","v":""},{"$f":"IF(OR(ROW()>$F$3,ISERR(1/TabEntradaDados[[#This Row],[ENTRADA]])),\"\",TabEntradaDados[[#This Row],[ENTRADA]])","v":""},{"$f":"IF(OR(ROW()>$F$3,ISERR(1/TabEntradaDados[[#This Row],[SAÍDA ]])),\"\",TabEntradaDados[[#This Row],[SAÍDA ]])","v":""},{"$f":"IF(OR(ROW()>$F$3,ISERR(1/TabEntradaDados[[#This Row],[RETORNO]])),\"\",TabEntradaDados[[#This Row],[RETORNO]])","v":""}]
[null,null,null,null,null,null,null,null,null,null,null,null,null,null,null,null,null,null,null,"",{"$f":"IF(OR($F$3=6,ROW()>$F$3),\"\",IF($A53=\"\",U52,INDEX(TabPorto[],MATCH($A53,TabPorto[PORTO],0),1)))","v":""},{"$f":"IF($B53=\"\",\"\",INDEX(TabProdutoPorto[],MATCH($B53,TabProdutoPorto[PRODUTO],0),5))","v":""},{"$f":"IF(OR($B$4=\"\",ROW()>$F$3),\"\",INDEX(TabTipoProduto[],MATCH($B$4,TabTipoProduto[TIPO PROD],0),1))","v":""},{"$f":"IF(OR(ROW()>$F$3,ISERR(1/TabEntradaDados[[#This Row],[ENTRADA]])),\"\",TabEntradaDados[[#This Row],[ENTRADA]])","v":""},{"$f":"IF(OR(ROW()>$F$3,ISERR(1/TabEntradaDados[[#This Row],[SAÍDA ]])),\"\",TabEntradaDados[[#This Row],[SAÍDA ]])","v":""},{"$f":"IF(OR(ROW()>$F$3,ISERR(1/TabEntradaDados[[#This Row],[RETORNO]])),\"\",TabEntradaDados[[#This Row],[RETORNO]])","v":""}]
[null,null,null,null,null,null,null,null,null,null,null,null,null,null,null,null,null,null,null,"",{"$f":"IF(OR($F$3=6,ROW()>$F$3),\"\",IF($A54=\"\",U53,INDEX(TabPorto[],MATCH($A54,TabPorto[PORTO],0),1)))","v":""},{"$f":"IF($B54=\"\",\"\",INDEX(TabProdutoPorto[],MATCH($B54,TabProdutoPorto[PRODUTO],0),5))","v":""},{"$f":"IF(OR($B$4=\"\",ROW()>$F$3),\"\",INDEX(TabTipoProduto[],MATCH($B$4,TabTipoProduto[TIPO PROD],0),1))","v":""},{"$f":"IF(OR(ROW()>$F$3,ISERR(1/TabEntradaDados[[#This Row],[ENTRADA]])),\"\",TabEntradaDados[[#This Row],[ENTRADA]])","v":""},{"$f":"IF(OR(ROW()>$F$3,ISERR(1/TabEntradaDados[[#This Row],[SAÍDA ]])),\"\",TabEntradaDados[[#This Row],[SAÍDA ]])","v":""},{"$f":"IF(OR(ROW()>$F$3,ISERR(1/TabEntradaDados[[#This Row],[RETORNO]])),\"\",TabEntradaDados[[#This Row],[RETORNO]])","v":""}]
[null,null,null,null,null,null,null,null,null,null,null,null,null,null,null,null,null,null,null,"",{"$f":"IF(OR($F$3=6,ROW()>$F$3),\"\",IF($A55=\"\",U54,INDEX(TabPorto[],MATCH($A55,TabPorto[PORTO],0),1)))","v":""},{"$f":"IF($B55=\"\",\"\",INDEX(TabProdutoPorto[],MATCH($B55,TabProdutoPorto[PRODUTO],0),5))","v":""},{"$f":"IF(OR($B$4=\"\",ROW()>$F$3),\"\",INDEX(TabTipoProduto[],MATCH($B$4,TabTipoProduto[TIPO PROD],0),1))","v":""},{"$f":"IF(OR(ROW()>$F$3,ISERR(1/TabEntradaDados[[#This Row],[ENTRADA]])),\"\",TabEntradaDados[[#This Row],[ENTRADA]])","v":""},{"$f":"IF(OR(ROW()>$F$3,ISERR(1/TabEntradaDados[[#This Row],[SAÍDA ]])),\"\",TabEntradaDados[[#This Row],[SAÍDA ]])","v":""},{"$f":"IF(OR(ROW()>$F$3,ISERR(1/TabEntradaDados[[#This Row],[RETORNO]])),\"\",TabEntradaDados[[#This Row],[RETORNO]])","v":""}]
[null,null,null,null,null,null,null,null,null,null,null,null,null,null,null,null,null,null,null,"",{"$f":"IF(OR($F$3=6,ROW()>$F$3),\"\",IF($A56=\"\",U55,INDEX(TabPorto[],MATCH($A56,TabPorto[PORTO],0),1)))","v":""},{"$f":"IF($B56=\"\",\"\",INDEX(TabProdutoPorto[],MATCH($B56,TabProdutoPorto[PRODUTO],0),5))","v":""},{"$f":"IF(OR($B$4=\"\",ROW()>$F$3),\"\",INDEX(TabTipoProduto[],MATCH($B$4,TabTipoProduto[TIPO PROD],0),1))","v":""},{"$f":"IF(OR(ROW()>$F$3,ISERR(1/TabEntradaDados[[#This Row],[ENTRADA]])),\"\",TabEntradaDados[[#This Row],[ENTRADA]])","v":""},{"$f":"IF(OR(ROW()>$F$3,ISERR(1/TabEntradaDados[[#This Row],[SAÍDA ]])),\"\",TabEntradaDados[[#This Row],[SAÍDA ]])","v":""},{"$f":"IF(OR(ROW()>$F$3,ISERR(1/TabEntradaDados[[#This Row],[RETORNO]])),\"\",TabEntradaDados[[#This Row],[RETORNO]])","v":""}]
[null,null,null,null,null,null,null,null,null,null,null,null,null,null,null,null,null,null,null,"",{"$f":"IF(OR($F$3=6,ROW()>$F$3),\"\",IF($A57=\"\",U56,INDEX(TabPorto[],MATCH($A57,TabPorto[PORTO],0),1)))","v":""},{"$f":"IF($B57=\"\",\"\",INDEX(TabProdutoPorto[],MATCH($B57,TabProdutoPorto[PRODUTO],0),5))","v":""},{"$f":"IF(OR($B$4=\"\",ROW()>$F$3),\"\",INDEX(TabTipoProduto[],MATCH($B$4,TabTipoProduto[TIPO PROD],0),1))","v":""},{"$f":"IF(OR(ROW()>$F$3,ISERR(1/TabEntradaDados[[#This Row],[ENTRADA]])),\"\",TabEntradaDados[[#This Row],[ENTRADA]])","v":""},{"$f":"IF(OR(ROW()>$F$3,ISERR(1/TabEntradaDados[[#This Row],[SAÍDA ]])),\"\",TabEntradaDados[[#This Row],[SAÍDA ]])","v":""},{"$f":"IF(OR(ROW()>$F$3,ISERR(1/TabEntradaDados[[#This Row],[RETORNO]])),\"\",TabEntradaDados[[#This Row],[RETORNO]])","v":""}]
[null,null,null,null,null,null,null,null,null,null,null,null,null,null,null,null,null,null,null,"",{"$f":"IF(OR($F$3=6,ROW()>$F$3),\"\",IF($A58=\"\",U57,INDEX(TabPorto[],MATCH($A58,TabPorto[PORTO],0),1)))","v":""},{"$f":"IF($B58=\"\",\"\",INDEX(TabProdutoPorto[],MATCH($B58,TabProdutoPorto[PRODUTO],0),5))","v":""},{"$f":"IF(OR($B$4=\"\",ROW()>$F$3),\"\",INDEX(TabTipoProduto[],MATCH($B$4,TabTipoProduto[TIPO PROD],0),1))","v":""},{"$f":"IF(OR(ROW()>$F$3,ISERR(1/TabEntradaDados[[#This Row],[ENTRADA]])),\"\",TabEntradaDados[[#This Row],[ENTRADA]])","v":""},{"$f":"IF(OR(ROW()>$F$3,ISERR(1/TabEntradaDados[[#This Row],[SAÍDA ]])),\"\",TabEntradaDados[[#This Row],[SAÍDA ]])","v":""},{"$f":"IF(OR(ROW()>$F$3,ISERR(1/TabEntradaDados[[#This Row],[RETORNO]])),\"\",TabEntradaDados[[#This Row],[RETORNO]])","v":""}]
[null,null,null,null,null,null,null,null,null,null,null,null,null,null,null,null,null,null,null,"",{"$f":"IF(OR($F$3=6,ROW()>$F$3),\"\",IF($A59=\"\",U58,INDEX(TabPorto[],MATCH($A59,TabPorto[PORTO],0),1)))","v":""},{"$f":"IF($B59=\"\",\"\",INDEX(TabProdutoPorto[],MATCH($B59,TabProdutoPorto[PRODUTO],0),5))","v":""},{"$f":"IF(OR($B$4=\"\",ROW()>$F$3),\"\",INDEX(TabTipoProduto[],MATCH($B$4,TabTipoProduto[TIPO PROD],0),1))","v":""},{"$f":"IF(OR(ROW()>$F$3,ISERR(1/TabEntradaDados[[#This Row],[ENTRADA]])),\"\",TabEntradaDados[[#This Row],[ENTRADA]])","v":""},{"$f":"IF(OR(ROW()>$F$3,ISERR(1/TabEntradaDados[[#This Row],[SAÍDA ]])),\"\",TabEntradaDados[[#This Row],[SAÍDA ]])","v":""},{"$f":"IF(OR(ROW()>$F$3,ISERR(1/TabEntradaDados[[#This Row],[RETORNO]])),\"\",TabEntradaDados[[#This Row],[RETORNO]])","v":""}]
[null,null,null,null,null,null,null,null,null,null,null,null,null,null,null,null,null,null,null,"",{"$f":"IF(OR($F$3=6,ROW()>$F$3),\"\",IF($A60=\"\",U59,INDEX(TabPorto[],MATCH($A60,TabPorto[PORTO],0),1)))","v":""},{"$f":"IF($B60=\"\",\"\",INDEX(TabProdutoPorto[],MATCH($B60,TabProdutoPorto[PRODUTO],0),5))","v":""},{"$f":"IF(OR($B$4=\"\",ROW()>$F$3),\"\",INDEX(TabTipoProduto[],MATCH($B$4,TabTipoProduto[TIPO PROD],0),1))","v":""},{"$f":"IF(OR(ROW()>$F$3,ISERR(1/TabEntradaDados[[#This Row],[ENTRADA]])),\"\",TabEntradaDados[[#This Row],[ENTRADA]])","v":""},{"$f":"IF(OR(ROW()>$F$3,ISERR(1/TabEntradaDados[[#This Row],[SAÍDA ]])),\"\",TabEntradaDados[[#This Row],[SAÍDA ]])","v":""},{"$f":"IF(OR(ROW()>$F$3,ISERR(1/TabEntradaDados[[#This Row],[RETORNO]])),\"\",TabEntradaDados[[#This Row],[RETORNO]])","v":""}]
[null,null,null,null,null,null,null,null,null,null,null,null,null,null,null,null,null,null,null,"",{"$f":"IF(OR($F$3=6,ROW()>$F$3),\"\",IF($A61=\"\",U60,INDEX(TabPorto[],MATCH($A61,TabPorto[PORTO],0),1)))","v":""},{"$f":"IF($B61=\"\",\"\",INDEX(TabProdutoPorto[],MATCH($B61,TabProdutoPorto[PRODUTO],0),5))","v":""},{"$f":"IF(OR($B$4=\"\",ROW()>$F$3),\"\",INDEX(TabTipoProduto[],MATCH($B$4,TabTipoProduto[TIPO PROD],0),1))","v":""},{"$f":"IF(OR(ROW()>$F$3,ISERR(1/TabEntradaDados[[#This Row],[ENTRADA]])),\"\",TabEntradaDados[[#This Row],[ENTRADA]])","v":""},{"$f":"IF(OR(ROW()>$F$3,ISERR(1/TabEntradaDados[[#This Row],[SAÍDA ]])),\"\",TabEntradaDados[[#This Row],[SAÍDA ]])","v":""},{"$f":"IF(OR(ROW()>$F$3,ISERR(1/TabEntradaDados[[#This Row],[RETORNO]])),\"\",TabEntradaDados[[#This Row],[RETORNO]])","v":""}]
[null,null,null,null,null,null,null,null,null,null,null,null,null,null,null,null,null,null,null,"",{"$f":"IF(OR($F$3=6,ROW()>$F$3),\"\",IF($A62=\"\",U61,INDEX(TabPorto[],MATCH($A62,TabPorto[PORTO],0),1)))","v":""},{"$f":"IF($B62=\"\",\"\",INDEX(TabProdutoPorto[],MATCH($B62,TabProdutoPorto[PRODUTO],0),5))","v":""},{"$f":"IF(OR($B$4=\"\",ROW()>$F$3),\"\",INDEX(TabTipoProduto[],MATCH($B$4,TabTipoProduto[TIPO PROD],0),1))","v":""},{"$f":"IF(OR(ROW()>$F$3,ISERR(1/TabEntradaDados[[#This Row],[ENTRADA]])),\"\",TabEntradaDados[[#This Row],[ENTRADA]])","v":""},{"$f":"IF(OR(ROW()>$F$3,ISERR(1/TabEntradaDados[[#This Row],[SAÍDA ]])),\"\",TabEntradaDados[[#This Row],[SAÍDA ]])","v":""},{"$f":"IF(OR(ROW()>$F$3,ISERR(1/TabEntradaDados[[#This Row],[RETORNO]])),\"\",TabEntradaDados[[#This Row],[RETORNO]])","v":""}]
[null,null,null,null,null,null,null,null,null,null,null,null,null,null,null,null,null,null,null,"",{"$f":"IF(OR($F$3=6,ROW()>$F$3),\"\",IF($A63=\"\",U62,INDEX(TabPorto[],MATCH($A63,TabPorto[PORTO],0),1)))","v":""},{"$f":"IF($B63=\"\",\"\",INDEX(TabProdutoPorto[],MATCH($B63,TabProdutoPorto[PRODUTO],0),5))","v":""},{"$f":"IF(OR($B$4=\"\",ROW()>$F$3),\"\",INDEX(TabTipoProduto[],MATCH($B$4,TabTipoProduto[TIPO PROD],0),1))","v":""},{"$f":"IF(OR(ROW()>$F$3,ISERR(1/TabEntradaDados[[#This Row],[ENTRADA]])),\"\",TabEntradaDados[[#This Row],[ENTRADA]])","v":""},{"$f":"IF(OR(ROW()>$F$3,ISERR(1/TabEntradaDados[[#This Row],[SAÍDA ]])),\"\",TabEntradaDados[[#This Row],[SAÍDA ]])","v":""},{"$f":"IF(OR(ROW()>$F$3,ISERR(1/TabEntradaDados[[#This Row],[RETORNO]])),\"\",TabEntradaDados[[#This Row],[RETORNO]])","v":""}]
[null,null,null,null,null,null,null,null,null,null,null,null,null,null,null,null,null,null,null,"",{"$f":"IF(OR($F$3=6,ROW()>$F$3),\"\",IF($A64=\"\",U63,INDEX(TabPorto[],MATCH($A64,TabPorto[PORTO],0),1)))","v":""},{"$f":"IF($B64=\"\",\"\",INDEX(TabProdutoPorto[],MATCH($B64,TabProdutoPorto[PRODUTO],0),5))","v":""},{"$f":"IF(OR($B$4=\"\",ROW()>$F$3),\"\",INDEX(TabTipoProduto[],MATCH($B$4,TabTipoProduto[TIPO PROD],0),1))","v":""},{"$f":"IF(OR(ROW()>$F$3,ISERR(1/TabEntradaDados[[#This Row],[ENTRADA]])),\"\",TabEntradaDados[[#This Row],[ENTRADA]])","v":""},{"$f":"IF(OR(ROW()>$F$3,ISERR(1/TabEntradaDados[[#This Row],[SAÍDA ]])),\"\",TabEntradaDados[[#This Row],[SAÍDA ]])","v":""},{"$f":"IF(OR(ROW()>$F$3,ISERR(1/TabEntradaDados[[#This Row],[RETORNO]])),\"\",TabEntradaDados[[#This Row],[RETORNO]])","v":""}]
[null,null,null,null,null,null,null,null,null,null,null,null,null,null,null,null,null,null,null,"",{"$f":"IF(OR($F$3=6,ROW()>$F$3),\"\",IF($A65=\"\",U64,INDEX(TabPorto[],MATCH($A65,TabPorto[PORTO],0),1)))","v":""},{"$f":"IF($B65=\"\",\"\",INDEX(TabProdutoPorto[],MATCH($B65,TabProdutoPorto[PRODUTO],0),5))","v":""},{"$f":"IF(OR($B$4=\"\",ROW()>$F$3),\"\",INDEX(TabTipoProduto[],MATCH($B$4,TabTipoProduto[TIPO PROD],0),1))","v":""},{"$f":"IF(OR(ROW()>$F$3,ISERR(1/TabEntradaDados[[#This Row],[ENTRADA]])),\"\",TabEntradaDados[[#This Row],[ENTRADA]])","v":""},{"$f":"IF(OR(ROW()>$F$3,ISERR(1/TabEntradaDados[[#This Row],[SAÍDA ]])),\"\",TabEntradaDados[[#This Row],[SAÍDA ]])","v":""},{"$f":"IF(OR(ROW()>$F$3,ISERR(1/TabEntradaDados[[#This Row],[RETORNO]])),\"\",TabEntradaDados[[#This Row],[RETORNO]])","v":""}]
[null,null,null,null,null,null,null,null,null,null,null,null,null,null,null,null,null,null,null,"",{"$f":"IF(OR($F$3=6,ROW()>$F$3),\"\",IF($A66=\"\",U65,INDEX(TabPorto[],MATCH($A66,TabPorto[PORTO],0),1)))","v":""},{"$f":"IF($B66=\"\",\"\",INDEX(TabProdutoPorto[],MATCH($B66,TabProdutoPorto[PRODUTO],0),5))","v":""},{"$f":"IF(OR($B$4=\"\",ROW()>$F$3),\"\",INDEX(TabTipoProduto[],MATCH($B$4,TabTipoProduto[TIPO PROD],0),1))","v":""},{"$f":"IF(OR(ROW()>$F$3,ISERR(1/TabEntradaDados[[#This Row],[ENTRADA]])),\"\",TabEntradaDados[[#This Row],[ENTRADA]])","v":""},{"$f":"IF(OR(ROW()>$F$3,ISERR(1/TabEntradaDados[[#This Row],[SAÍDA ]])),\"\",TabEntradaDados[[#This Row],[SAÍDA ]])","v":""},{"$f":"IF(OR(ROW()>$F$3,ISERR(1/TabEntradaDados[[#This Row],[RETORNO]])),\"\",TabEntradaDados[[#This Row],[RETORNO]])","v":""}]
[null,null,null,null,null,null,null,null,null,null,null,null,null,null,null,null,null,null,null,"",{"$f":"IF(OR($F$3=6,ROW()>$F$3),\"\",IF($A67=\"\",U66,INDEX(TabPorto[],MATCH($A67,TabPorto[PORTO],0),1)))","v":""},{"$f":"IF($B67=\"\",\"\",INDEX(TabProdutoPorto[],MATCH($B67,TabProdutoPorto[PRODUTO],0),5))","v":""},{"$f":"IF(OR($B$4=\"\",ROW()>$F$3),\"\",INDEX(TabTipoProduto[],MATCH($B$4,TabTipoProduto[TIPO PROD],0),1))","v":""},{"$f":"IF(OR(ROW()>$F$3,ISERR(1/TabEntradaDados[[#This Row],[ENTRADA]])),\"\",TabEntradaDados[[#This Row],[ENTRADA]])","v":""},{"$f":"IF(OR(ROW()>$F$3,ISERR(1/TabEntradaDados[[#This Row],[SAÍDA ]])),\"\",TabEntradaDados[[#This Row],[SAÍDA ]])","v":""},{"$f":"IF(OR(ROW()>$F$3,ISERR(1/TabEntradaDados[[#This Row],[RETORNO]])),\"\",TabEntradaDados[[#This Row],[RETORNO]])","v":""}]
[null,null,null,null,null,null,null,null,null,null,null,null,null,null,null,null,null,null,null,"",{"$f":"IF(OR($F$3=6,ROW()>$F$3),\"\",IF($A68=\"\",U67,INDEX(TabPorto[],MATCH($A68,TabPorto[PORTO],0),1)))","v":""},{"$f":"IF($B68=\"\",\"\",INDEX(TabProdutoPorto[],MATCH($B68,TabProdutoPorto[PRODUTO],0),5))","v":""},{"$f":"IF(OR($B$4=\"\",ROW()>$F$3),\"\",INDEX(TabTipoProduto[],MATCH($B$4,TabTipoProduto[TIPO PROD],0),1))","v":""},{"$f":"IF(OR(ROW()>$F$3,ISERR(1/TabEntradaDados[[#This Row],[ENTRADA]])),\"\",TabEntradaDados[[#This Row],[ENTRADA]])","v":""},{"$f":"IF(OR(ROW()>$F$3,ISERR(1/TabEntradaDados[[#This Row],[SAÍDA ]])),\"\",TabEntradaDados[[#This Row],[SAÍDA ]])","v":""},{"$f":"IF(OR(ROW()>$F$3,ISERR(1/TabEntradaDados[[#This Row],[RETORNO]])),\"\",TabEntradaDados[[#This Row],[RETORNO]])","v":""}]
[null,null,null,null,null,null,null,null,null,null,null,null,null,null,null,null,null,null,null,"",{"$f":"IF(OR($F$3=6,ROW()>$F$3),\"\",IF($A69=\"\",U68,INDEX(TabPorto[],MATCH($A69,TabPorto[PORTO],0),1)))","v":""},{"$f":"IF($B69=\"\",\"\",INDEX(TabProdutoPorto[],MATCH($B69,TabProdutoPorto[PRODUTO],0),5))","v":""},{"$f":"IF(OR($B$4=\"\",ROW()>$F$3),\"\",INDEX(TabTipoProduto[],MATCH($B$4,TabTipoProduto[TIPO PROD],0),1))","v":""},{"$f":"IF(OR(ROW()>$F$3,ISERR(1/TabEntradaDados[[#This Row],[ENTRADA]])),\"\",TabEntradaDados[[#This Row],[ENTRADA]])","v":""},{"$f":"IF(OR(ROW()>$F$3,ISERR(1/TabEntradaDados[[#This Row],[SAÍDA ]])),\"\",TabEntradaDados[[#This Row],[SAÍDA ]])","v":""},{"$f":"IF(OR(ROW()>$F$3,ISERR(1/TabEntradaDados[[#This Row],[RETORNO]])),\"\",TabEntradaDados[[#This Row],[RETORNO]])","v":""}]
[null,null,null,null,null,null,null,null,null,null,null,null,null,null,null,null,null,null,null,"",{"$f":"IF(OR($F$3=6,ROW()>$F$3),\"\",IF($A70=\"\",U69,INDEX(TabPorto[],MATCH($A70,TabPorto[PORTO],0),1)))","v":""},{"$f":"IF($B70=\"\",\"\",INDEX(TabProdutoPorto[],MATCH($B70,TabProdutoPorto[PRODUTO],0),5))","v":""},{"$f":"IF(OR($B$4=\"\",ROW()>$F$3),\"\",INDEX(TabTipoProduto[],MATCH($B$4,TabTipoProduto[TIPO PROD],0),1))","v":""},{"$f":"IF(OR(ROW()>$F$3,ISERR(1/TabEntradaDados[[#This Row],[ENTRADA]])),\"\",TabEntradaDados[[#This Row],[ENTRADA]])","v":""},{"$f":"IF(OR(ROW()>$F$3,ISERR(1/TabEntradaDados[[#This Row],[SAÍDA ]])),\"\",TabEntradaDados[[#This Row],[SAÍDA ]])","v":""},{"$f":"IF(OR(ROW()>$F$3,ISERR(1/TabEntradaDados[[#This Row],[RETORNO]])),\"\",TabEntradaDados[[#This Row],[RETORNO]])","v":""}]
[null,null,null,null,null,null,null,null,null,null,null,null,null,null,null,null,null,null,null,"",{"$f":"IF(OR($F$3=6,ROW()>$F$3),\"\",IF($A71=\"\",U70,INDEX(TabPorto[],MATCH($A71,TabPorto[PORTO],0),1)))","v":""},{"$f":"IF($B71=\"\",\"\",INDEX(TabProdutoPorto[],MATCH($B71,TabProdutoPorto[PRODUTO],0),5))","v":""},{"$f":"IF(OR($B$4=\"\",ROW()>$F$3),\"\",INDEX(TabTipoProduto[],MATCH($B$4,TabTipoProduto[TIPO PROD],0),1))","v":""},{"$f":"IF(OR(ROW()>$F$3,ISERR(1/TabEntradaDados[[#This Row],[ENTRADA]])),\"\",TabEntradaDados[[#This Row],[ENTRADA]])","v":""},{"$f":"IF(OR(ROW()>$F$3,ISERR(1/TabEntradaDados[[#This Row],[SAÍDA ]])),\"\",TabEntradaDados[[#This Row],[SAÍDA ]])","v":""},{"$f":"IF(OR(ROW()>$F$3,ISERR(1/TabEntradaDados[[#This Row],[RETORNO]])),\"\",TabEntradaDados[[#This Row],[RETORNO]])","v":""}]
[null,null,null,null,null,null,null,null,null,null,null,null,null,null,null,null,null,null,null,{"$f":"IF(ROW()<=$F$3,$E$5,\"\")","v":""},{"$f":"IF(OR($F$3=6,ROW()>$F$3),\"\",IF($A72=\"\",U71,INDEX(TabPorto[],MATCH($A72,TabPorto[PORTO],0),1)))","v":""},{"$f":"IF($B72=\"\",\"\",INDEX(TabProdutoPorto[],MATCH($B72,TabProdutoPorto[PRODUTO],0),5))","v":""},{"$f":"IF(OR($B$4=\"\",ROW()>$F$3),\"\",INDEX(TabTipoProduto[],MATCH($B$4,TabTipoProduto[TIPO PROD],0),1))","v":""},{"$f":"IF(OR(ROW()>$F$3,ISERR(1/TabEntradaDados[[#This Row],[ENTRADA]])),\"\",TabEntradaDados[[#This Row],[ENTRADA]])","v":""},{"$f":"IF(OR(ROW()>$F$3,ISERR(1/TabEntradaDados[[#This Row],[SAÍDA ]])),\"\",TabEntradaDados[[#This Row],[SAÍDA ]])","v":""},{"$f":"IF(OR(ROW()>$F$3,ISERR(1/TabEntradaDados[[#This Row],[RETORNO]])),\"\",TabEntradaDados[[#This Row],[RETORNO]])","v":""}]
[null,null,null,null,null,null,null,null,null,null,null,null,null,null,null,null,null,null,null,"",{"$f":"IF(OR($F$3=6,ROW()>$F$3),\"\",IF($A73=\"\",U72,INDEX(TabPorto[],MATCH($A73,TabPorto[PORTO],0),1)))","v":""},{"$f":"IF($B73=\"\",\"\",INDEX(TabProdutoPorto[],MATCH($B73,TabProdutoPorto[PRODUTO],0),5))","v":""},{"$f":"IF(OR($B$4=\"\",ROW()>$F$3),\"\",INDEX(TabTipoProduto[],MATCH($B$4,TabTipoProduto[TIPO PROD],0),1))","v":""},{"$f":"IF(OR(ROW()>$F$3,ISERR(1/TabEntradaDados[[#This Row],[ENTRADA]])),\"\",TabEntradaDados[[#This Row],[ENTRADA]])","v":""},{"$f":"IF(OR(ROW()>$F$3,ISERR(1/TabEntradaDados[[#This Row],[SAÍDA ]])),\"\",TabEntradaDados[[#This Row],[SAÍDA ]])","v":""},{"$f":"IF(OR(ROW()>$F$3,ISERR(1/TabEntradaDados[[#This Row],[RETORNO]])),\"\",TabEntradaDados[[#This Row],[RETORNO]])","v":""}]
[null,null,null,null,null,null,null,null,null,null,null,null,null,null,null,null,null,null,null,"",{"$f":"IF(OR($F$3=6,ROW()>$F$3),\"\",IF($A74=\"\",U73,INDEX(TabPorto[],MATCH($A74,TabPorto[PORTO],0),1)))","v":""},{"$f":"IF($B74=\"\",\"\",INDEX(TabProdutoPorto[],MATCH($B74,TabProdutoPorto[PRODUTO],0),5))","v":""},{"$f":"IF(OR($B$4=\"\",ROW()>$F$3),\"\",INDEX(TabTipoProduto[],MATCH($B$4,TabTipoProduto[TIPO PROD],0),1))","v":""},{"$f":"IF(OR(ROW()>$F$3,ISERR(1/TabEntradaDados[[#This Row],[ENTRADA]])),\"\",TabEntradaDados[[#This Row],[ENTRADA]])","v":""},{"$f":"IF(OR(ROW()>$F$3,ISERR(1/TabEntradaDados[[#This Row],[SAÍDA ]])),\"\",TabEntradaDados[[#This Row],[SAÍDA ]])","v":""},{"$f":"IF(OR(ROW()>$F$3,ISERR(1/TabEntradaDados[[#This Row],[RETORNO]])),\"\",TabEntradaDados[[#This Row],[RETORNO]])","v":""}]
[null,null,null,null,null,null,null,null,null,null,null,null,null,null,null,null,null,null,null,"",{"$f":"IF(OR($F$3=6,ROW()>$F$3),\"\",IF($A75=\"\",U74,INDEX(TabPorto[],MATCH($A75,TabPorto[PORTO],0),1)))","v":""},{"$f":"IF($B75=\"\",\"\",INDEX(TabProdutoPorto[],MATCH($B75,TabProdutoPorto[PRODUTO],0),5))","v":""},{"$f":"IF(OR($B$4=\"\",ROW()>$F$3),\"\",INDEX(TabTipoProduto[],MATCH($B$4,TabTipoProduto[TIPO PROD],0),1))","v":""},{"$f":"IF(OR(ROW()>$F$3,ISERR(1/TabEntradaDados[[#This Row],[ENTRADA]])),\"\",TabEntradaDados[[#This Row],[ENTRADA]])","v":""},{"$f":"IF(OR(ROW()>$F$3,ISERR(1/TabEntradaDados[[#This Row],[SAÍDA ]])),\"\",TabEntradaDados[[#This Row],[SAÍDA ]])","v":""},{"$f":"IF(OR(ROW()>$F$3,ISERR(1/TabEntradaDados[[#This Row],[RETORNO]])),\"\",TabEntradaDados[[#This Row],[RETORNO]])","v":""}]
[null,null,null,null,null,null,null,null,null,null,null,null,null,null,null,null,null,null,null,"",{"$f":"IF(OR($F$3=6,ROW()>$F$3),\"\",IF($A76=\"\",U75,INDEX(TabPorto[],MATCH($A76,TabPorto[PORTO],0),1)))","v":""},{"$f":"IF($B76=\"\",\"\",INDEX(TabProdutoPorto[],MATCH($B76,TabProdutoPorto[PRODUTO],0),5))","v":""},{"$f":"IF(OR($B$4=\"\",ROW()>$F$3),\"\",INDEX(TabTipoProduto[],MATCH($B$4,TabTipoProduto[TIPO PROD],0),1))","v":""},{"$f":"IF(OR(ROW()>$F$3,ISERR(1/TabEntradaDados[[#This Row],[ENTRADA]])),\"\",TabEntradaDados[[#This Row],[ENTRADA]])","v":""},{"$f":"IF(OR(ROW()>$F$3,ISERR(1/TabEntradaDados[[#This Row],[SAÍDA ]])),\"\",TabEntradaDados[[#This Row],[SAÍDA ]])","v":""},{"$f":"IF(OR(ROW()>$F$3,ISERR(1/TabEntradaDados[[#This Row],[RETORNO]])),\"\",TabEntradaDados[[#This Row],[RETORNO]])","v":""}]
[null,null,null,null,null,null,null,null,null,null,null,null,null,null,null,null,null,null,null,"",{"$f":"IF(OR($F$3=6,ROW()>$F$3),\"\",IF($A77=\"\",U76,INDEX(TabPorto[],MATCH($A77,TabPorto[PORTO],0),1)))","v":""},{"$f":"IF($B77=\"\",\"\",INDEX(TabProdutoPorto[],MATCH($B77,TabProdutoPorto[PRODUTO],0),5))","v":""},{"$f":"IF(OR($B$4=\"\",ROW()>$F$3),\"\",INDEX(TabTipoProduto[],MATCH($B$4,TabTipoProduto[TIPO PROD],0),1))","v":""},{"$f":"IF(OR(ROW()>$F$3,ISERR(1/TabEntradaDados[[#This Row],[ENTRADA]])),\"\",TabEntradaDados[[#This Row],[ENTRADA]])","v":""},{"$f":"IF(OR(ROW()>$F$3,ISERR(1/TabEntradaDados[[#This Row],[SAÍDA ]])),\"\",TabEntradaDados[[#This Row],[SAÍDA ]])","v":""},{"$f":"IF(OR(ROW()>$F$3,ISERR(1/TabEntradaDados[[#This Row],[RETORNO]])),\"\",TabEntradaDados[[#This Row],[RETORNO]])","v":""}]
[null,null,null,null,null,null,null,null,null,null,null,null,null,null,null,null,null,null,null,"",{"$f":"IF(OR($F$3=6,ROW()>$F$3),\"\",IF($A78=\"\",U77,INDEX(TabPorto[],MATCH($A78,TabPorto[PORTO],0),1)))","v":""},{"$f":"IF($B78=\"\",\"\",INDEX(TabProdutoPorto[],MATCH($B78,TabProdutoPorto[PRODUTO],0),5))","v":""},{"$f":"IF(OR($B$4=\"\",ROW()>$F$3),\"\",INDEX(TabTipoProduto[],MATCH($B$4,TabTipoProduto[TIPO PROD],0),1))","v":""},{"$f":"IF(OR(ROW()>$F$3,ISERR(1/TabEntradaDados[[#This Row],[ENTRADA]])),\"\",TabEntradaDados[[#This Row],[ENTRADA]])","v":""},{"$f":"IF(OR(ROW()>$F$3,ISERR(1/TabEntradaDados[[#This Row],[SAÍDA ]])),\"\",TabEntradaDados[[#This Row],[SAÍDA ]])","v":""},{"$f":"IF(OR(ROW()>$F$3,ISERR(1/TabEntradaDados[[#This Row],[RETORNO]])),\"\",TabEntradaDados[[#This Row],[RETORNO]])","v":""}]
[null,null,null,null,null,null,null,null,null,null,null,null,null,null,null,null,null,null,null,"",{"$f":"IF(OR($F$3=6,ROW()>$F$3),\"\",IF($A79=\"\",U78,INDEX(TabPorto[],MATCH($A79,TabPorto[PORTO],0),1)))","v":""},{"$f":"IF($B79=\"\",\"\",INDEX(TabProdutoPorto[],MATCH($B79,TabProdutoPorto[PRODUTO],0),5))","v":""},{"$f":"IF(OR($B$4=\"\",ROW()>$F$3),\"\",INDEX(TabTipoProduto[],MATCH($B$4,TabTipoProduto[TIPO PROD],0),1))","v":""},{"$f":"IF(OR(ROW()>$F$3,ISERR(1/TabEntradaDados[[#This Row],[ENTRADA]])),\"\",TabEntradaDados[[#This Row],[ENTRADA]])","v":""},{"$f":"IF(OR(ROW()>$F$3,ISERR(1/TabEntradaDados[[#This Row],[SAÍDA ]])),\"\",TabEntradaDados[[#This Row],[SAÍDA ]])","v":""},{"$f":"IF(OR(ROW()>$F$3,ISERR(1/TabEntradaDados[[#This Row],[RETORNO]])),\"\",TabEntradaDados[[#This Row],[RETORNO]])","v":""}]
[null,null,null,null,null,null,null,null,null,null,null,null,null,null,null,null,null,null,null,"",{"$f":"IF(OR($F$3=6,ROW()>$F$3),\"\",IF($A80=\"\",U79,INDEX(TabPorto[],MATCH($A80,TabPorto[PORTO],0),1)))","v":""},{"$f":"IF($B80=\"\",\"\",INDEX(TabProdutoPorto[],MATCH($B80,TabProdutoPorto[PRODUTO],0),5))","v":""},{"$f":"IF(OR($B$4=\"\",ROW()>$F$3),\"\",INDEX(TabTipoProduto[],MATCH($B$4,TabTipoProduto[TIPO PROD],0),1))","v":""},{"$f":"IF(OR(ROW()>$F$3,ISERR(1/TabEntradaDados[[#This Row],[ENTRADA]])),\"\",TabEntradaDados[[#This Row],[ENTRADA]])","v":""},{"$f":"IF(OR(ROW()>$F$3,ISERR(1/TabEntradaDados[[#This Row],[SAÍDA ]])),\"\",TabEntradaDados[[#This Row],[SAÍDA ]])","v":""},{"$f":"IF(OR(ROW()>$F$3,ISERR(1/TabEntradaDados[[#This Row],[RETORNO]])),\"\",TabEntradaDados[[#This Row],[RETORNO]])","v":""}]
[null,null,null,null,null,null,null,null,null,null,null,null,null,null,null,null,null,null,null,"",{"$f":"IF(OR($F$3=6,ROW()>$F$3),\"\",IF($A81=\"\",U80,INDEX(TabPorto[],MATCH($A81,TabPorto[PORTO],0),1)))","v":""},{"$f":"IF($B81=\"\",\"\",INDEX(TabProdutoPorto[],MATCH($B81,TabProdutoPorto[PRODUTO],0),5))","v":""},{"$f":"IF(OR($B$4=\"\",ROW()>$F$3),\"\",INDEX(TabTipoProduto[],MATCH($B$4,TabTipoProduto[TIPO PROD],0),1))","v":""},{"$f":"IF(OR(ROW()>$F$3,ISERR(1/TabEntradaDados[[#This Row],[ENTRADA]])),\"\",TabEntradaDados[[#This Row],[ENTRADA]])","v":""},{"$f":"IF(OR(ROW()>$F$3,ISERR(1/TabEntradaDados[[#This Row],[SAÍDA ]])),\"\",TabEntradaDados[[#This Row],[SAÍDA ]])","v":""},{"$f":"IF(OR(ROW()>$F$3,ISERR(1/TabEntradaDados[[#This Row],[RETORNO]])),\"\",TabEntradaDados[[#This Row],[RETORNO]])","v":""}]
[null,null,null,null,null,null,null,null,null,null,null,null,null,null,null,null,null,null,null,"",{"$f":"IF(OR($F$3=6,ROW()>$F$3),\"\",IF($A82=\"\",U81,INDEX(TabPorto[],MATCH($A82,TabPorto[PORTO],0),1)))","v":""},{"$f":"IF($B82=\"\",\"\",INDEX(TabProdutoPorto[],MATCH($B82,TabProdutoPorto[PRODUTO],0),5))","v":""},{"$f":"IF(OR($B$4=\"\",ROW()>$F$3),\"\",INDEX(TabTipoProduto[],MATCH($B$4,TabTipoProduto[TIPO PROD],0),1))","v":""},{"$f":"IF(OR(ROW()>$F$3,ISERR(1/TabEntradaDados[[#This Row],[ENTRADA]])),\"\",TabEntradaDados[[#This Row],[ENTRADA]])","v":""},{"$f":"IF(OR(ROW()>$F$3,ISERR(1/TabEntradaDados[[#This Row],[SAÍDA ]])),\"\",TabEntradaDados[[#This Row],[SAÍDA ]])","v":""},{"$f":"IF(OR(ROW()>$F$3,ISERR(1/TabEntradaDados[[#This Row],[RETORNO]])),\"\",TabEntradaDados[[#This Row],[RETORNO]])","v":""}]
[null,null,null,null,null,null,null,null,null,null,null,null,null,null,null,null,null,null,null,"",{"$f":"IF(OR($F$3=6,ROW()>$F$3),\"\",IF($A83=\"\",U82,INDEX(TabPorto[],MATCH($A83,TabPorto[PORTO],0),1)))","v":""},{"$f":"IF($B83=\"\",\"\",INDEX(TabProdutoPorto[],MATCH($B83,TabProdutoPorto[PRODUTO],0),5))","v":""},{"$f":"IF(OR($B$4=\"\",ROW()>$F$3),\"\",INDEX(TabTipoProduto[],MATCH($B$4,TabTipoProduto[TIPO PROD],0),1))","v":""},{"$f":"IF(OR(ROW()>$F$3,ISERR(1/TabEntradaDados[[#This Row],[ENTRADA]])),\"\",TabEntradaDados[[#This Row],[ENTRADA]])","v":""},{"$f":"IF(OR(ROW()>$F$3,ISERR(1/TabEntradaDados[[#This Row],[SAÍDA ]])),\"\",TabEntradaDados[[#This Row],[SAÍDA ]])","v":""},{"$f":"IF(OR(ROW()>$F$3,ISERR(1/TabEntradaDados[[#This Row],[RETORNO]])),\"\",TabEntradaDados[[#This Row],[RETORNO]])","v":""}]
[null,null,null,null,null,null,null,null,null,null,null,null,null,null,null,null,null,null,null,"",{"$f":"IF(OR($F$3=6,ROW()>$F$3),\"\",IF($A84=\"\",U83,INDEX(TabPorto[],MATCH($A84,TabPorto[PORTO],0),1)))","v":""},{"$f":"IF($B84=\"\",\"\",INDEX(TabProdutoPorto[],MATCH($B84,TabProdutoPorto[PRODUTO],0),5))","v":""},{"$f":"IF(OR($B$4=\"\",ROW()>$F$3),\"\",INDEX(TabTipoProduto[],MATCH($B$4,TabTipoProduto[TIPO PROD],0),1))","v":""},{"$f":"IF(OR(ROW()>$F$3,ISERR(1/TabEntradaDados[[#This Row],[ENTRADA]])),\"\",TabEntradaDados[[#This Row],[ENTRADA]])","v":""},{"$f":"IF(OR(ROW()>$F$3,ISERR(1/TabEntradaDados[[#This Row],[SAÍDA ]])),\"\",TabEntradaDados[[#This Row],[SAÍDA ]])","v":""},{"$f":"IF(OR(ROW()>$F$3,ISERR(1/TabEntradaDados[[#This Row],[RETORNO]])),\"\",TabEntradaDados[[#This Row],[RETORNO]])","v":""}]
[null,null,null,null,null,null,null,null,null,null,null,null,null,null,null,null,null,null,null,"",{"$f":"IF(OR($F$3=6,ROW()>$F$3),\"\",IF($A85=\"\",U84,INDEX(TabPorto[],MATCH($A85,TabPorto[PORTO],0),1)))","v":""},{"$f":"IF($B85=\"\",\"\",INDEX(TabProdutoPorto[],MATCH($B85,TabProdutoPorto[PRODUTO],0),5))","v":""},{"$f":"IF(OR($B$4=\"\",ROW()>$F$3),\"\",INDEX(TabTipoProduto[],MATCH($B$4,TabTipoProduto[TIPO PROD],0),1))","v":""},{"$f":"IF(OR(ROW()>$F$3,ISERR(1/TabEntradaDados[[#This Row],[ENTRADA]])),\"\",TabEntradaDados[[#This Row],[ENTRADA]])","v":""},{"$f":"IF(OR(ROW()>$F$3,ISERR(1/TabEntradaDados[[#This Row],[SAÍDA ]])),\"\",TabEntradaDados[[#This Row],[SAÍDA ]])","v":""},{"$f":"IF(OR(ROW()>$F$3,ISERR(1/TabEntradaDados[[#This Row],[RETORNO]])),\"\",TabEntradaDados[[#This Row],[RETORNO]])","v":""}]
[null,null,null,null,null,null,null,null,null,null,null,null,null,null,null,null,null,null,null,"",{"$f":"IF(OR($F$3=6,ROW()>$F$3),\"\",IF($A86=\"\",U85,INDEX(TabPorto[],MATCH($A86,TabPorto[PORTO],0),1)))","v":""},{"$f":"IF($B86=\"\",\"\",INDEX(TabProdutoPorto[],MATCH($B86,TabProdutoPorto[PRODUTO],0),5))","v":""},{"$f":"IF(OR($B$4=\"\",ROW()>$F$3),\"\",INDEX(TabTipoProduto[],MATCH($B$4,TabTipoProduto[TIPO PROD],0),1))","v":""},{"$f":"IF(OR(ROW()>$F$3,ISERR(1/TabEntradaDados[[#This Row],[ENTRADA]])),\"\",TabEntradaDados[[#This Row],[ENTRADA]])","v":""},{"$f":"IF(OR(ROW()>$F$3,ISERR(1/TabEntradaDados[[#This Row],[SAÍDA ]])),\"\",TabEntradaDados[[#This Row],[SAÍDA ]])","v":""},{"$f":"IF(OR(ROW()>$F$3,ISERR(1/TabEntradaDados[[#This Row],[RETORNO]])),\"\",TabEntradaDados[[#This Row],[RETORNO]])","v":""}]
[null,null,null,null,null,null,null,null,null,null,null,null,null,null,null,null,null,null,null,"",{"$f":"IF(OR($F$3=6,ROW()>$F$3),\"\",IF($A87=\"\",U86,INDEX(TabPorto[],MATCH($A87,TabPorto[PORTO],0),1)))","v":""},{"$f":"IF($B87=\"\",\"\",INDEX(TabProdutoPorto[],MATCH($B87,TabProdutoPorto[PRODUTO],0),5))","v":""},{"$f":"IF(OR($B$4=\"\",ROW()>$F$3),\"\",INDEX(TabTipoProduto[],MATCH($B$4,TabTipoProduto[TIPO PROD],0),1))","v":""},{"$f":"IF(OR(ROW()>$F$3,ISERR(1/TabEntradaDados[[#This Row],[ENTRADA]])),\"\",TabEntradaDados[[#This Row],[ENTRADA]])","v":""},{"$f":"IF(OR(ROW()>$F$3,ISERR(1/TabEntradaDados[[#This Row],[SAÍDA ]])),\"\",TabEntradaDados[[#This Row],[SAÍDA ]])","v":""},{"$f":"IF(OR(ROW()>$F$3,ISERR(1/TabEntradaDados[[#This Row],[RETORNO]])),\"\",TabEntradaDados[[#This Row],[RETORNO]])","v":""}]
[null,null,null,null,null,null,null,null,null,null,null,null,null,null,null,null,null,null,null,"",{"$f":"IF(OR($F$3=6,ROW()>$F$3),\"\",IF($A88=\"\",U87,INDEX(TabPorto[],MATCH($A88,TabPorto[PORTO],0),1)))","v":""},{"$f":"IF($B88=\"\",\"\",INDEX(TabProdutoPorto[],MATCH($B88,TabProdutoPorto[PRODUTO],0),5))","v":""},{"$f":"IF(OR($B$4=\"\",ROW()>$F$3),\"\",INDEX(TabTipoProduto[],MATCH($B$4,TabTipoProduto[TIPO PROD],0),1))","v":""},{"$f":"IF(OR(ROW()>$F$3,ISERR(1/TabEntradaDados[[#This Row],[ENTRADA]])),\"\",TabEntradaDados[[#This Row],[ENTRADA]])","v":""},{"$f":"IF(OR(ROW()>$F$3,ISERR(1/TabEntradaDados[[#This Row],[SAÍDA ]])),\"\",TabEntradaDados[[#This Row],[SAÍDA ]])","v":""},{"$f":"IF(OR(ROW()>$F$3,ISERR(1/TabEntradaDados[[#This Row],[RETORNO]])),\"\",TabEntradaDados[[#This Row],[RETORNO]])","v":""}]
[null,null,null,null,null,null,null,null,null,null,null,null,null,null,null,null,null,null,null,"",{"$f":"IF(OR($F$3=6,ROW()>$F$3),\"\",IF($A89=\"\",U88,INDEX(TabPorto[],MATCH($A89,TabPorto[PORTO],0),1)))","v":""},{"$f":"IF($B89=\"\",\"\",INDEX(TabProdutoPorto[],MATCH($B89,TabProdutoPorto[PRODUTO],0),5))","v":""},{"$f":"IF(OR($B$4=\"\",ROW()>$F$3),\"\",INDEX(TabTipoProduto[],MATCH($B$4,TabTipoProduto[TIPO PROD],0),1))","v":""},{"$f":"IF(OR(ROW()>$F$3,ISERR(1/TabEntradaDados[[#This Row],[ENTRADA]])),\"\",TabEntradaDados[[#This Row],[ENTRADA]])","v":""},{"$f":"IF(OR(ROW()>$F$3,ISERR(1/TabEntradaDados[[#This Row],[SAÍDA ]])),\"\",TabEntradaDados[[#This Row],[SAÍDA ]])","v":""},{"$f":"IF(OR(ROW()>$F$3,ISERR(1/TabEntradaDados[[#This Row],[RETORNO]])),\"\",TabEntradaDados[[#This Row],[RETORNO]])","v":""}]
[null,null,null,null,null,null,null,null,null,null,null,null,null,null,null,null,null,null,null,"",{"$f":"IF(OR($F$3=6,ROW()>$F$3),\"\",IF($A90=\"\",U89,INDEX(TabPorto[],MATCH($A90,TabPorto[PORTO],0),1)))","v":""},{"$f":"IF($B90=\"\",\"\",INDEX(TabProdutoPorto[],MATCH($B90,TabProdutoPorto[PRODUTO],0),5))","v":""},{"$f":"IF(OR($B$4=\"\",ROW()>$F$3),\"\",INDEX(TabTipoProduto[],MATCH($B$4,TabTipoProduto[TIPO PROD],0),1))","v":""},{"$f":"IF(OR(ROW()>$F$3,ISERR(1/TabEntradaDados[[#This Row],[ENTRADA]])),\"\",TabEntradaDados[[#This Row],[ENTRADA]])","v":""},{"$f":"IF(OR(ROW()>$F$3,ISERR(1/TabEntradaDados[[#This Row],[SAÍDA ]])),\"\",TabEntradaDados[[#This Row],[SAÍDA ]])","v":""},{"$f":"IF(OR(ROW()>$F$3,ISERR(1/TabEntradaDados[[#This Row],[RETORNO]])),\"\",TabEntradaDados[[#This Row],[RETORNO]])","v":""}]
[null,null,null,null,null,null,null,null,null,null,null,null,null,null,null,null,null,null,null,"",{"$f":"IF(OR($F$3=6,ROW()>$F$3),\"\",IF($A91=\"\",U90,INDEX(TabPorto[],MATCH($A91,TabPorto[PORTO],0),1)))","v":""},{"$f":"IF($B91=\"\",\"\",INDEX(TabProdutoPorto[],MATCH($B91,TabProdutoPorto[PRODUTO],0),5))","v":""},{"$f":"IF(OR($B$4=\"\",ROW()>$F$3),\"\",INDEX(TabTipoProduto[],MATCH($B$4,TabTipoProduto[TIPO PROD],0),1))","v":""},{"$f":"IF(OR(ROW()>$F$3,ISERR(1/TabEntradaDados[[#This Row],[ENTRADA]])),\"\",TabEntradaDados[[#This Row],[ENTRADA]])","v":""},{"$f":"IF(OR(ROW()>$F$3,ISERR(1/TabEntradaDados[[#This Row],[SAÍDA ]])),\"\",TabEntradaDados[[#This Row],[SAÍDA ]])","v":""},{"$f":"IF(OR(ROW()>$F$3,ISERR(1/TabEntradaDados[[#This Row],[RETORNO]])),\"\",TabEntradaDados[[#This Row],[RETORNO]])","v":""}]
[null,null,null,null,null,null,null,null,null,null,null,null,null,null,null,null,null,null,null,"",{"$f":"IF(OR($F$3=6,ROW()>$F$3),\"\",IF($A92=\"\",U91,INDEX(TabPorto[],MATCH($A92,TabPorto[PORTO],0),1)))","v":""},{"$f":"IF($B92=\"\",\"\",INDEX(TabProdutoPorto[],MATCH($B92,TabProdutoPorto[PRODUTO],0),5))","v":""},{"$f":"IF(OR($B$4=\"\",ROW()>$F$3),\"\",INDEX(TabTipoProduto[],MATCH($B$4,TabTipoProduto[TIPO PROD],0),1))","v":""},{"$f":"IF(OR(ROW()>$F$3,ISERR(1/TabEntradaDados[[#This Row],[ENTRADA]])),\"\",TabEntradaDados[[#This Row],[ENTRADA]])","v":""},{"$f":"IF(OR(ROW()>$F$3,ISERR(1/TabEntradaDados[[#This Row],[SAÍDA ]])),\"\",TabEntradaDados[[#This Row],[SAÍDA ]])","v":""},{"$f":"IF(OR(ROW()>$F$3,ISERR(1/TabEntradaDados[[#This Row],[RETORNO]])),\"\",TabEntradaDados[[#This Row],[RETORNO]])","v":""}]
[null,null,null,null,null,null,null,null,null,null,null,null,null,null,null,null,null,null,null,"",{"$f":"IF(OR($F$3=6,ROW()>$F$3),\"\",IF($A93=\"\",U92,INDEX(TabPorto[],MATCH($A93,TabPorto[PORTO],0),1)))","v":""},{"$f":"IF($B93=\"\",\"\",INDEX(TabProdutoPorto[],MATCH($B93,TabProdutoPorto[PRODUTO],0),5))","v":""},{"$f":"IF(OR($B$4=\"\",ROW()>$F$3),\"\",INDEX(TabTipoProduto[],MATCH($B$4,TabTipoProduto[TIPO PROD],0),1))","v":""},{"$f":"IF(OR(ROW()>$F$3,ISERR(1/TabEntradaDados[[#This Row],[ENTRADA]])),\"\",TabEntradaDados[[#This Row],[ENTRADA]])","v":""},{"$f":"IF(OR(ROW()>$F$3,ISERR(1/TabEntradaDados[[#This Row],[SAÍDA ]])),\"\",TabEntradaDados[[#This Row],[SAÍDA ]])","v":""},{"$f":"IF(OR(ROW()>$F$3,ISERR(1/TabEntradaDados[[#This Row],[RETORNO]])),\"\",TabEntradaDados[[#This Row],[RETORNO]])","v":""}]
[null,null,null,null,null,null,null,null,null,null,null,null,null,null,null,null,null,null,null,"",{"$f":"IF(OR($F$3=6,ROW()>$F$3),\"\",IF($A94=\"\",U93,INDEX(TabPorto[],MATCH($A94,TabPorto[PORTO],0),1)))","v":""},{"$f":"IF($B94=\"\",\"\",INDEX(TabProdutoPorto[],MATCH($B94,TabProdutoPorto[PRODUTO],0),5))","v":""},{"$f":"IF(OR($B$4=\"\",ROW()>$F$3),\"\",INDEX(TabTipoProduto[],MATCH($B$4,TabTipoProduto[TIPO PROD],0),1))","v":""},{"$f":"IF(OR(ROW()>$F$3,ISERR(1/TabEntradaDados[[#This Row],[ENTRADA]])),\"\",TabEntradaDados[[#This Row],[ENTRADA]])","v":""},{"$f":"IF(OR(ROW()>$F$3,ISERR(1/TabEntradaDados[[#This Row],[SAÍDA ]])),\"\",TabEntradaDados[[#This Row],[SAÍDA ]])","v":""},{"$f":"IF(OR(ROW()>$F$3,ISERR(1/TabEntradaDados[[#This Row],[RETORNO]])),\"\",TabEntradaDados[[#This Row],[RETORNO]])","v":""}]
[null,null,null,null,null,null,null,null,null,null,null,null,null,null,null,null,null,null,null,"",{"$f":"IF(OR($F$3=6,ROW()>$F$3),\"\",IF($A95=\"\",U94,INDEX(TabPorto[],MATCH($A95,TabPorto[PORTO],0),1)))","v":""},{"$f":"IF($B95=\"\",\"\",INDEX(TabProdutoPorto[],MATCH($B95,TabProdutoPorto[PRODUTO],0),5))","v":""},{"$f":"IF(OR($B$4=\"\",ROW()>$F$3),\"\",INDEX(TabTipoProduto[],MATCH($B$4,TabTipoProduto[TIPO PROD],0),1))","v":""},{"$f":"IF(OR(ROW()>$F$3,ISERR(1/TabEntradaDados[[#This Row],[ENTRADA]])),\"\",TabEntradaDados[[#This Row],[ENTRADA]])","v":""},{"$f":"IF(OR(ROW()>$F$3,ISERR(1/TabEntradaDados[[#This Row],[SAÍDA ]])),\"\",TabEntradaDados[[#This Row],[SAÍDA ]])","v":""},{"$f":"IF(OR(ROW()>$F$3,ISERR(1/TabEntradaDados[[#This Row],[RETORNO]])),\"\",TabEntradaDados[[#This Row],[RETORNO]])","v":""}]
[null,null,null,null,null,null,null,null,null,null,null,null,null,null,null,null,null,null,null,"",{"$f":"IF(OR($F$3=6,ROW()>$F$3),\"\",IF($A96=\"\",U95,INDEX(TabPorto[],MATCH($A96,TabPorto[PORTO],0),1)))","v":""},{"$f":"IF($B96=\"\",\"\",INDEX(TabProdutoPorto[],MATCH($B96,TabProdutoPorto[PRODUTO],0),5))","v":""},{"$f":"IF(OR($B$4=\"\",ROW()>$F$3),\"\",INDEX(TabTipoProduto[],MATCH($B$4,TabTipoProduto[TIPO PROD],0),1))","v":""},{"$f":"IF(OR(ROW()>$F$3,ISERR(1/TabEntradaDados[[#This Row],[ENTRADA]])),\"\",TabEntradaDados[[#This Row],[ENTRADA]])","v":""},{"$f":"IF(OR(ROW()>$F$3,ISERR(1/TabEntradaDados[[#This Row],[SAÍDA ]])),\"\",TabEntradaDados[[#This Row],[SAÍDA ]])","v":""},{"$f":"IF(OR(ROW()>$F$3,ISERR(1/TabEntradaDados[[#This Row],[RETORNO]])),\"\",TabEntradaDados[[#This Row],[RETORNO]])","v":""}]
[null,null,null,null,null,null,null,null,null,null,null,null,null,null,null,null,null,null,null,"",{"$f":"IF(OR($F$3=6,ROW()>$F$3),\"\",IF($A97=\"\",U96,INDEX(TabPorto[],MATCH($A97,TabPorto[PORTO],0),1)))","v":""},{"$f":"IF($B97=\"\",\"\",INDEX(TabProdutoPorto[],MATCH($B97,TabProdutoPorto[PRODUTO],0),5))","v":""},{"$f":"IF(OR($B$4=\"\",ROW()>$F$3),\"\",INDEX(TabTipoProduto[],MATCH($B$4,TabTipoProduto[TIPO PROD],0),1))","v":""},{"$f":"IF(OR(ROW()>$F$3,ISERR(1/TabEntradaDados[[#This Row],[ENTRADA]])),\"\",TabEntradaDados[[#This Row],[ENTRADA]])","v":""},{"$f":"IF(OR(ROW()>$F$3,ISERR(1/TabEntradaDados[[#This Row],[SAÍDA ]])),\"\",TabEntradaDados[[#This Row],[SAÍDA ]])","v":""},{"$f":"IF(OR(ROW()>$F$3,ISERR(1/TabEntradaDados[[#This Row],[RETORNO]])),\"\",TabEntradaDados[[#This Row],[RETORNO]])","v":""}]
[null,null,null,null,null,null,null,null,null,null,null,null,null,null,null,null,null,null,null,"",{"$f":"IF(OR($F$3=6,ROW()>$F$3),\"\",IF($A98=\"\",U97,INDEX(TabPorto[],MATCH($A98,TabPorto[PORTO],0),1)))","v":""},{"$f":"IF($B98=\"\",\"\",INDEX(TabProdutoPorto[],MATCH($B98,TabProdutoPorto[PRODUTO],0),5))","v":""},{"$f":"IF(OR($B$4=\"\",ROW()>$F$3),\"\",INDEX(TabTipoProduto[],MATCH($B$4,TabTipoProduto[TIPO PROD],0),1))","v":""},{"$f":"IF(OR(ROW()>$F$3,ISERR(1/TabEntradaDados[[#This Row],[ENTRADA]])),\"\",TabEntradaDados[[#This Row],[ENTRADA]])","v":""},{"$f":"IF(OR(ROW()>$F$3,ISERR(1/TabEntradaDados[[#This Row],[SAÍDA ]])),\"\",TabEntradaDados[[#This Row],[SAÍDA ]])","v":""},{"$f":"IF(OR(ROW()>$F$3,ISERR(1/TabEntradaDados[[#This Row],[RETORNO]])),\"\",TabEntradaDados[[#This Row],[RETORNO]])","v":""}]
[null,null,null,null,null,null,null,null,null,null,null,null,null,null,null,null,null,null,null,"",{"$f":"IF(OR($F$3=6,ROW()>$F$3),\"\",IF($A99=\"\",U98,INDEX(TabPorto[],MATCH($A99,TabPorto[PORTO],0),1)))","v":""},{"$f":"IF($B99=\"\",\"\",INDEX(TabProdutoPorto[],MATCH($B99,TabProdutoPorto[PRODUTO],0),5))","v":""},{"$f":"IF(OR($B$4=\"\",ROW()>$F$3),\"\",INDEX(TabTipoProduto[],MATCH($B$4,TabTipoProduto[TIPO PROD],0),1))","v":""},{"$f":"IF(OR(ROW()>$F$3,ISERR(1/TabEntradaDados[[#This Row],[ENTRADA]])),\"\",TabEntradaDados[[#This Row],[ENTRADA]])","v":""},{"$f":"IF(OR(ROW()>$F$3,ISERR(1/TabEntradaDados[[#This Row],[SAÍDA ]])),\"\",TabEntradaDados[[#This Row],[SAÍDA ]])","v":""},{"$f":"IF(OR(ROW()>$F$3,ISERR(1/TabEntradaDados[[#This Row],[RETORNO]])),\"\",TabEntradaDados[[#This Row],[RETORNO]])","v":""}]
[null,null,null,null,null,null,null,null,null,null,null,null,null,null,null,null,null,null,null,"",{"$f":"IF(OR($F$3=6,ROW()>$F$3),\"\",IF($A100=\"\",U99,INDEX(TabPorto[],MATCH($A100,TabPorto[PORTO],0),1)))","v":""},{"$f":"IF($B100=\"\",\"\",INDEX(TabProdutoPorto[],MATCH($B100,TabProdutoPorto[PRODUTO],0),5))","v":""},{"$f":"IF(OR($B$4=\"\",ROW()>$F$3),\"\",INDEX(TabTipoProduto[],MATCH($B$4,TabTipoProduto[TIPO PROD],0),1))","v":""},{"$f":"IF(OR(ROW()>$F$3,ISERR(1/TabEntradaDados[[#This Row],[ENTRADA]])),\"\",TabEntradaDados[[#This Row],[ENTRADA]])","v":""},{"$f":"IF(OR(ROW()>$F$3,ISERR(1/TabEntradaDados[[#This Row],[SAÍDA ]])),\"\",TabEntradaDados[[#This Row],[SAÍDA ]])","v":""},{"$f":"IF(OR(ROW()>$F$3,ISERR(1/TabEntradaDados[[#This Row],[RETORNO]])),\"\",TabEntradaDados[[#This Row],[RETORNO]])","v":""}]

{"sheet":"Totalização","index":6,"n_rows":8,"n_cols":4,"rows_kept":8,"cut":false,"hidden":false,"merged":[]}
["CÓD PORTO","All"]
["CÓD TIPO","All"]
["CÓD PRODUTO","All"]
[]
["Rótulos de Linha","Soma de ENTRADA","Soma de RETORNO","Soma de SAÍDA"]
["mai",3082,224,2297]
["jun",9246,672.00000000000011,6891]
["Total Geral",12328,896.00000000000057,9188]

{"sheet":"TD Produto Porto","index":7,"n_rows":32,"n_cols":2,"rows_kept":32,"cut":false,"hidden":false,"merged":[]}
["PORTO","PORTO AMAZONAS"]
["TIPO PROD","SOJA/CEREAL"]
[]
["PRODUTO","UNID"]
["Ad+","lt"]
["Anpligo","lt"]
["Aureo","lt"]
["Brilhante","lt"]
["Caiso","lt"]
["Certero","lt"]
["CoMo","lt"]
["Craft","lt"]
["Curiom","lt"]
["Elatus","kg"]
["Engeo Pleno","lt"]
["Escore flex","lt"]
["Fert Mimo","lt"]
["Flex","lt"]
["Fox","lt"]
["Imunit","lt"]
["Mertim","lt"]
["Mustang","lt"]
["Natur óleo","lt"]
["Ninbus","lt"]
["Opera Ultra","lt"]
["Paradox","lt"]
["Platinum neo","lt"]
["Starter","lt"]
["Unizeb","kg"]
["Verdict","lt"]
["Zatphir","lt"]
["Total Geral"]

{"sheet":"Produto Porto","index":8,"n_rows":104,"n_cols":17,"rows_kept":104,"cut":false,"hidden":false,"merged":[]}
[]
[]
["CÓD PORTO","PORTO","CÓD TIPO","TIPO PROD","CÓD PROD","PRODUTO","UNID",null,null,null,null,"CÓD PORTO","PORTO",null,null,"CÓD TIPO","TIPO PROD"]
[1,"BALSA NOVA",1,"SOJA/CEREAL",{"$f":"INDEX(TabProduto[#All],MATCH(TabProdutoPorto[[#This Row],[PRODUTO]],TabProduto[[#All],[PRODUTO]],0),1)","v":3},"Adesil","lt",null,null,null,null,1,"BALSA NOVA",null,null,1,"SOJA/CEREAL"]
[1,"BALSA NOVA",1,"SOJA/CEREAL",{"$f":"INDEX(TabProduto[#All],MATCH(TabProdutoPorto[[#This Row],[PRODUTO]],TabProduto[[#All],[PRODUTO]],0),1)","v":4},"Agral","lt",null,null,null,null,2,"LAPA",null,null,2,"BATATA"]
[1,"BALSA NOVA",1,"SOJA/CEREAL",{"$f":"INDEX(TabProduto[#All],MATCH(TabProdutoPorto[[#This Row],[PRODUTO]],TabProduto[[#All],[PRODUTO]],0),1)","v":5},"Amistar Top","lt",null,null,null,null,3,"PORTO AMAZONAS"]
[1,"BALSA NOVA",1,"SOJA/CEREAL",{"$f":"INDEX(TabProduto[#All],MATCH(TabProdutoPorto[[#This Row],[PRODUTO]],TabProduto[[#All],[PRODUTO]],0),1)","v":7},"Amplo","lt"]
[1,"BALSA NOVA",1,"SOJA/CEREAL",{"$f":"INDEX(TabProduto[#All],MATCH(TabProdutoPorto[[#This Row],[PRODUTO]],TabProduto[[#All],[PRODUTO]],0),1)","v":10},"Basagran","lt"]
[1,"BALSA NOVA",1,"SOJA/CEREAL",{"$f":"INDEX(TabProduto[#All],MATCH(TabProdutoPorto[[#This Row],[PRODUTO]],TabProduto[[#All],[PRODUTO]],0),1)","v":17},"Carbendozin","lt"]
[1,"BALSA NOVA",1,"SOJA/CEREAL",{"$f":"INDEX(TabProduto[#All],MATCH(TabProdutoPorto[[#This Row],[PRODUTO]],TabProduto[[#All],[PRODUTO]],0),1)","v":21},"CoMo","lt"]
[1,"BALSA NOVA",1,"SOJA/CEREAL",{"$f":"INDEX(TabProduto[#All],MATCH(TabProdutoPorto[[#This Row],[PRODUTO]],TabProduto[[#All],[PRODUTO]],0),1)","v":27},"Dual Gold","lt"]
[1,"BALSA NOVA",1,"SOJA/CEREAL",{"$f":"INDEX(TabProduto[#All],MATCH(TabProdutoPorto[[#This Row],[PRODUTO]],TabProduto[[#All],[PRODUTO]],0),1)","v":29},"Engeo Pleno","lt"]
[1,"BALSA NOVA",1,"SOJA/CEREAL",{"$f":"INDEX(TabProduto[#All],MATCH(TabProdutoPorto[[#This Row],[PRODUTO]],TabProduto[[#All],[PRODUTO]],0),1)","v":35},"Fertaction","lt"]
[1,"BALSA NOVA",1,"SOJA/CEREAL",{"$f":"INDEX(TabProduto[#All],MATCH(TabProdutoPorto[[#This Row],[PRODUTO]],TabProduto[[#All],[PRODUTO]],0),1)","v":36},"Fertimino","lt"]
[1,"BALSA NOVA",1,"SOJA/CEREAL",{"$f":"INDEX(TabProduto[#All],MATCH(TabProdutoPorto[[#This Row],[PRODUTO]],TabProduto[[#All],[PRODUTO]],0),1)","v":37},"Finale","lt"]
[1,"BALSA NOVA",1,"SOJA/CEREAL",{"$f":"INDEX(TabProduto[#All],MATCH(TabProdutoPorto[[#This Row],[PRODUTO]],TabProduto[[#All],[PRODUTO]],0),1)","v":39},"Flex","lt"]
[1,"BALSA NOVA",1,"SOJA/CEREAL",{"$f":"INDEX(TabProduto[#All],MATCH(TabProdutoPorto[[#This Row],[PRODUTO]],TabProduto[[#All],[PRODUTO]],0),1)","v":52},"Nimbus","lt"]
[1,"BALSA NOVA",1,"SOJA/CEREAL",{"$f":"INDEX(TabProduto[#All],MATCH(TabProdutoPorto[[#This Row],[PRODUTO]],TabProduto[[#All],[PRODUTO]],0),1)","v":54},"Opera Ultra","lt"]
[1,"BALSA NOVA",1,"SOJA/CEREAL",{"$f":"INDEX(TabProduto[#All],MATCH(TabProdutoPorto[[#This Row],[PRODUTO]],TabProduto[[#All],[PRODUTO]],0),1)","v":62},"Quality","kg"]
[1,"BALSA NOVA",1,"SOJA/CEREAL",{"$f":"INDEX(TabProduto[#All],MATCH(TabProdutoPorto[[#This Row],[PRODUTO]],TabProduto[[#All],[PRODUTO]],0),1)","v":63},"Quantis","lt"]
[1,"BALSA NOVA",1,"SOJA/CEREAL",{"$f":"INDEX(TabProduto[#All],MATCH(TabProdutoPorto[[#This Row],[PRODUTO]],TabProduto[[#All],[PRODUTO]],0),1)","v":69},"Start","lt"]
[1,"BALSA NOVA",1,"SOJA/CEREAL",{"$f":"INDEX(TabProduto[#All],MATCH(TabProdutoPorto[[#This Row],[PRODUTO]],TabProduto[[#All],[PRODUTO]],0),1)","v":72},"Tocha","lt"]
[1,"BALSA NOVA",1,"SOJA/CEREAL",{"$f":"INDEX(TabProduto[#All],MATCH(TabProdutoPorto[[#This Row],[PRODUTO]],TabProduto[[#All],[PRODUTO]],0),1)","v":75},"Zapp","lt"]
[2,"LAPA",1,"SOJA/CEREAL",{"$f":"INDEX(TabProduto[#All],MATCH(TabProdutoPorto[[#This Row],[PRODUTO]],TabProduto[[#All],[PRODUTO]],0),1)","v":3},"Adesil","lt"]
[2,"LAPA",1,"SOJA/CEREAL",{"$f":"INDEX(TabProduto[#All],MATCH(TabProdutoPorto[[#This Row],[PRODUTO]],TabProduto[[#All],[PRODUTO]],0),1)","v":4},"Agral","lt"]
[2,"LAPA",1,"SOJA/CEREAL",{"$f":"INDEX(TabProduto[#All],MATCH(TabProdutoPorto[[#This Row],[PRODUTO]],TabProduto[[#All],[PRODUTO]],0),1)","v":5},"Amistar Top","lt"]
[2,"LAPA",1,"SOJA/CEREAL",{"$f":"INDEX(TabProduto[#All],MATCH(TabProdutoPorto[[#This Row],[PRODUTO]],TabProduto[[#All],[PRODUTO]],0),1)","v":7},"Amplo","lt"]
[2,"LAPA",1,"SOJA/CEREAL",{"$f":"INDEX(TabProduto[#All],MATCH(TabProdutoPorto[[#This Row],[PRODUTO]],TabProduto[[#All],[PRODUTO]],0),1)","v":10},"Basagran","lt"]
[2,"LAPA",1,"SOJA/CEREAL",{"$f":"INDEX(TabProduto[#All],MATCH(TabProdutoPorto[[#This Row],[PRODUTO]],TabProduto[[#All],[PRODUTO]],0),1)","v":17},"Carbendozin","lt"]
[2,"LAPA",1,"SOJA/CEREAL",{"$f":"INDEX(TabProduto[#All],MATCH(TabProdutoPorto[[#This Row],[PRODUTO]],TabProduto[[#All],[PRODUTO]],0),1)","v":21},"CoMo","lt"]
[2,"LAPA",1,"SOJA/CEREAL",{"$f":"INDEX(TabProduto[#All],MATCH(TabProdutoPorto[[#This Row],[PRODUTO]],TabProduto[[#All],[PRODUTO]],0),1)","v":27},"Dual Gold","lt"]
[2,"LAPA",1,"SOJA/CEREAL",{"$f":"INDEX(TabProduto[#All],MATCH(TabProdutoPorto[[#This Row],[PRODUTO]],TabProduto[[#All],[PRODUTO]],0),1)","v":29},"Engeo Pleno","lt"]
[2,"LAPA",1,"SOJA/CEREAL",{"$f":"INDEX(TabProduto[#All],MATCH(TabProdutoPorto[[#This Row],[PRODUTO]],TabProduto[[#All],[PRODUTO]],0),1)","v":35},"Fertaction","lt"]
[2,"LAPA",1,"SOJA/CEREAL",{"$f":"INDEX(TabProduto[#All],MATCH(TabProdutoPorto[[#This Row],[PRODUTO]],TabProduto[[#All],[PRODUTO]],0),1)","v":36},"Fertimino","lt"]
[2,"LAPA",1,"SOJA/CEREAL",{"$f":"INDEX(TabProduto[#All],MATCH(TabProdutoPorto[[#This Row],[PRODUTO]],TabProduto[[#All],[PRODUTO]],0),1)","v":37},"Finale","lt"]
[2,"LAPA",1,"SOJA/CEREAL",{"$f":"INDEX(TabProduto[#All],MATCH(TabProdutoPorto[[#This Row],[PRODUTO]],TabProduto[[#All],[PRODUTO]],0),1)","v":39},"Flex","lt"]
[2,"LAPA",1,"SOJA/CEREAL",{"$f":"INDEX(TabProduto[#All],MATCH(TabProdutoPorto[[#This Row],[PRODUTO]],TabProduto[[#All],[PRODUTO]],0),1)","v":52},"Nimbus","lt"]
[2,"LAPA",1,"SOJA/CEREAL",{"$f":"INDEX(TabProduto[#All],MATCH(TabProdutoPorto[[#This Row],[PRODUTO]],TabProduto[[#All],[PRODUTO]],0),1)","v":54},"Opera Ultra","lt"]
[2,"LAPA",1,"SOJA/CEREAL",{"$f":"INDEX(TabProduto[#All],MATCH(TabProdutoPorto[[#This Row],[PRODUTO]],TabProduto[[#All],[PRODUTO]],0),1)","v":62},"Quality","kg"]
[2,"LAPA",1,"SOJA/CEREAL",{"$f":"INDEX(TabProduto[#All],MATCH(TabProdutoPorto[[#This Row],[PRODUTO]],TabProduto[[#All],[PRODUTO]],0),1)","v":63},"Quantis","lt"]
[2,"LAPA",1,"SOJA/CEREAL",{"$f":"INDEX(TabProduto[#All],MATCH(TabProdutoPorto[[#This Row],[PRODUTO]],TabProduto[[#All],[PRODUTO]],0),1)","v":69},"Start","lt"]
[2,"LAPA",1,"SOJA/CEREAL",{"$f":"INDEX(TabProduto[#All],MATCH(TabProdutoPorto[[#This Row],[PRODUTO]],TabProduto[[#All],[PRODUTO]],0),1)","v":72},"Tocha","lt"]
[2,"LAPA",1,"SOJA/CEREAL",{"$f":"INDEX(TabProduto[#All],MATCH(TabProdutoPorto[[#This Row],[PRODUTO]],TabProduto[[#All],[PRODUTO]],0),1)","v":75},"Zapp","lt"]
[3,"PORTO AMAZONAS",2,"BATATA",{"$f":"INDEX(TabProduto[#All],MATCH(TabProdutoPorto[[#This Row],[PRODUTO]],TabProduto[[#All],[PRODUTO]],0),1)","v":1},"Actara","kg"]
[3,"PORTO AMAZONAS",2,"BATATA",{"$f":"INDEX(TabProduto[#All],MATCH(TabProdutoPorto[[#This Row],[PRODUTO]],TabProduto[[#All],[PRODUTO]],0),1)","v":3},"Adesil","lt"]
[3,"PORTO AMAZONAS",2,"BATATA",{"$f":"INDEX(TabProduto[#All],MATCH(TabProdutoPorto[[#This Row],[PRODUTO]],TabProduto[[#All],[PRODUTO]],0),1)","v":5},"Amistar Top","lt"]
[3,"PORTO AMAZONAS",2,"BATATA",{"$f":"INDEX(TabProduto[#All],MATCH(TabProdutoPorto[[#This Row],[PRODUTO]],TabProduto[[#All],[PRODUTO]],0),1)","v":6},"Ampligo","lt"]
[3,"PORTO AMAZONAS",2,"BATATA",{"$f":"INDEX(TabProduto[#All],MATCH(TabProdutoPorto[[#This Row],[PRODUTO]],TabProduto[[#All],[PRODUTO]],0),1)","v":11},"Benivia","lt"]
[3,"PORTO AMAZONAS",2,"BATATA",{"$f":"INDEX(TabProduto[#All],MATCH(TabProdutoPorto[[#This Row],[PRODUTO]],TabProduto[[#All],[PRODUTO]],0),1)","v":12},"Brabonil","lt"]
[3,"PORTO AMAZONAS",2,"BATATA",{"$f":"INDEX(TabProduto[#All],MATCH(TabProdutoPorto[[#This Row],[PRODUTO]],TabProduto[[#All],[PRODUTO]],0),1)","v":13},"Brilhant","lt"]
[3,"PORTO AMAZONAS",2,"BATATA",{"$f":"INDEX(TabProduto[#All],MATCH(TabProdutoPorto[[#This Row],[PRODUTO]],TabProduto[[#All],[PRODUTO]],0),1)","v":16},"Carbendazim","lt"]
[3,"PORTO AMAZONAS",2,"BATATA",{"$f":"INDEX(TabProduto[#All],MATCH(TabProdutoPorto[[#This Row],[PRODUTO]],TabProduto[[#All],[PRODUTO]],0),1)","v":19},"Cimox","kg"]
[3,"PORTO AMAZONAS",2,"BATATA",{"$f":"INDEX(TabProduto[#All],MATCH(TabProdutoPorto[[#This Row],[PRODUTO]],TabProduto[[#All],[PRODUTO]],0),1)","v":20},"Cobre","lt"]
[3,"PORTO AMAZONAS",2,"BATATA",{"$f":"INDEX(TabProduto[#All],MATCH(TabProdutoPorto[[#This Row],[PRODUTO]],TabProduto[[#All],[PRODUTO]],0),1)","v":22},"Coronel ","lt"]
[3,"PORTO AMAZONAS",2,"BATATA",{"$f":"INDEX(TabProduto[#All],MATCH(TabProdutoPorto[[#This Row],[PRODUTO]],TabProduto[[#All],[PRODUTO]],0),1)","v":24},"Curiom","lt"]
[3,"PORTO AMAZONAS",2,"BATATA",{"$f":"INDEX(TabProduto[#All],MATCH(TabProdutoPorto[[#This Row],[PRODUTO]],TabProduto[[#All],[PRODUTO]],0),1)","v":26},"Currum Max","lt"]
[3,"PORTO AMAZONAS",2,"BATATA",{"$f":"INDEX(TabProduto[#All],MATCH(TabProdutoPorto[[#This Row],[PRODUTO]],TabProduto[[#All],[PRODUTO]],0),1)","v":29},"Engeo Pleno","lt"]
[3,"PORTO AMAZONAS",2,"BATATA",{"$f":"INDEX(TabProduto[#All],MATCH(TabProdutoPorto[[#This Row],[PRODUTO]],TabProduto[[#All],[PRODUTO]],0),1)","v":31},"Equatim","kg"]
[3,"PORTO AMAZONAS",2,"BATATA",{"$f":"INDEX(TabProduto[#All],MATCH(TabProdutoPorto[[#This Row],[PRODUTO]],TabProduto[[#All],[PRODUTO]],0),1)","v":33},"Fert Mimo","lt"]
[3,"PORTO AMAZONAS",2,"BATATA",{"$f":"INDEX(TabProduto[#All],MATCH(TabProdutoPorto[[#This Row],[PRODUTO]],TabProduto[[#All],[PRODUTO]],0),1)","v":38},"Flavom","lt"]
[3,"PORTO AMAZONAS",2,"BATATA",{"$f":"INDEX(TabProduto[#All],MATCH(TabProdutoPorto[[#This Row],[PRODUTO]],TabProduto[[#All],[PRODUTO]],0),1)","v":42},"Frutus Flus","lt"]
[3,"PORTO AMAZONAS",2,"BATATA",{"$f":"INDEX(TabProduto[#All],MATCH(TabProdutoPorto[[#This Row],[PRODUTO]],TabProduto[[#All],[PRODUTO]],0),1)","v":43},"Fuzilade","lt"]
[3,"PORTO AMAZONAS",2,"BATATA",{"$f":"INDEX(TabProduto[#All],MATCH(TabProdutoPorto[[#This Row],[PRODUTO]],TabProduto[[#All],[PRODUTO]],0),1)","v":45},"Kocid","kg"]
[3,"PORTO AMAZONAS",2,"BATATA",{"$f":"INDEX(TabProduto[#All],MATCH(TabProdutoPorto[[#This Row],[PRODUTO]],TabProduto[[#All],[PRODUTO]],0),1)","v":46},"Korpam","lt"]
[3,"PORTO AMAZONAS",2,"BATATA",{"$f":"INDEX(TabProduto[#All],MATCH(TabProdutoPorto[[#This Row],[PRODUTO]],TabProduto[[#All],[PRODUTO]],0),1)","v":48},"Morcult","lt"]
[3,"PORTO AMAZONAS",2,"BATATA",{"$f":"INDEX(TabProduto[#All],MATCH(TabProdutoPorto[[#This Row],[PRODUTO]],TabProduto[[#All],[PRODUTO]],0),1)","v":51},"Nidas","kg"]
[3,"PORTO AMAZONAS",2,"BATATA",{"$f":"INDEX(TabProduto[#All],MATCH(TabProdutoPorto[[#This Row],[PRODUTO]],TabProduto[[#All],[PRODUTO]],0),1)","v":56},"Oro Bor","lt"]
[3,"PORTO AMAZONAS",2,"BATATA",{"$f":"INDEX(TabProduto[#All],MATCH(TabProdutoPorto[[#This Row],[PRODUTO]],TabProduto[[#All],[PRODUTO]],0),1)","v":57},"Ortene","kg"]
[3,"PORTO AMAZONAS",2,"BATATA",{"$f":"INDEX(TabProduto[#All],MATCH(TabProdutoPorto[[#This Row],[PRODUTO]],TabProduto[[#All],[PRODUTO]],0),1)","v":60},"Previnil","lt"]
[3,"PORTO AMAZONAS",2,"BATATA",{"$f":"INDEX(TabProduto[#All],MATCH(TabProdutoPorto[[#This Row],[PRODUTO]],TabProduto[[#All],[PRODUTO]],0),1)","v":61},"Pro Plant","lt"]
[3,"PORTO AMAZONAS",2,"BATATA",{"$f":"INDEX(TabProduto[#All],MATCH(TabProdutoPorto[[#This Row],[PRODUTO]],TabProduto[[#All],[PRODUTO]],0),1)","v":64},"Repom","kg"]
[3,"PORTO AMAZONAS",2,"BATATA",{"$f":"INDEX(TabProduto[#All],MATCH(TabProdutoPorto[[#This Row],[PRODUTO]],TabProduto[[#All],[PRODUTO]],0),1)","v":65},"Revus","lt"]
[3,"PORTO AMAZONAS",2,"BATATA",{"$f":"INDEX(TabProduto[#All],MATCH(TabProdutoPorto[[#This Row],[PRODUTO]],TabProduto[[#All],[PRODUTO]],0),1)","v":66},"Rodomil","lt"]
[3,"PORTO AMAZONAS",2,"BATATA",{"$f":"INDEX(TabProduto[#All],MATCH(TabProdutoPorto[[#This Row],[PRODUTO]],TabProduto[[#All],[PRODUTO]],0),1)","v":67},"Scher 10","lt"]
[3,"PORTO AMAZONAS",2,"BATATA",{"$f":"INDEX(TabProduto[#All],MATCH(TabProdutoPorto[[#This Row],[PRODUTO]],TabProduto[[#All],[PRODUTO]],0),1)","v":68},"Sistemic","lt"]
[3,"PORTO AMAZONAS",2,"BATATA",{"$f":"INDEX(TabProduto[#All],MATCH(TabProdutoPorto[[#This Row],[PRODUTO]],TabProduto[[#All],[PRODUTO]],0),1)","v":71},"Tiger ","lt"]
[3,"PORTO AMAZONAS",2,"BATATA",{"$f":"INDEX(TabProduto[#All],MATCH(TabProdutoPorto[[#This Row],[PRODUTO]],TabProduto[[#All],[PRODUTO]],0),1)","v":77},"Zignal","lt"]
[3,"PORTO AMAZONAS",1,"SOJA/CEREAL",{"$f":"INDEX(TabProduto[#All],MATCH(TabProdutoPorto[[#This Row],[PRODUTO]],TabProduto[[#All],[PRODUTO]],0),1)","v":2},"Ad+ ","lt"]
[3,"PORTO AMAZONAS",1,"SOJA/CEREAL",{"$f":"INDEX(TabProduto[#All],MATCH(TabProdutoPorto[[#This Row],[PRODUTO]],TabProduto[[#All],[PRODUTO]],0),1)","v":8},"Anpligo ","lt"]
[3,"PORTO AMAZONAS",1,"SOJA/CEREAL",{"$f":"INDEX(TabProduto[#All],MATCH(TabProdutoPorto[[#This Row],[PRODUTO]],TabProduto[[#All],[PRODUTO]],0),1)","v":9},"Aureo ","lt"]
[3,"PORTO AMAZONAS",1,"SOJA/CEREAL",{"$f":"INDEX(TabProduto[#All],MATCH(TabProdutoPorto[[#This Row],[PRODUTO]],TabProduto[[#All],[PRODUTO]],0),1)","v":14},"Brilhante ","lt"]
[3,"PORTO AMAZONAS",1,"SOJA/CEREAL",{"$f":"INDEX(TabProduto[#All],MATCH(TabProdutoPorto[[#This Row],[PRODUTO]],TabProduto[[#All],[PRODUTO]],0),1)","v":15},"Caiso ","lt"]
[3,"PORTO AMAZONAS",1,"SOJA/CEREAL",{"$f":"INDEX(TabProduto[#All],MATCH(TabProdutoPorto[[#This Row],[PRODUTO]],TabProduto[[#All],[PRODUTO]],0),1)","v":18},"Certero ","lt"]
[3,"PORTO AMAZONAS",1,"SOJA/CEREAL",{"$f":"INDEX(TabProduto[#All],MATCH(TabProdutoPorto[[#This Row],[PRODUTO]],TabProduto[[#All],[PRODUTO]],0),1)","v":21},"Como","lt"]
[3,"PORTO AMAZONAS",1,"SOJA/CEREAL",{"$f":"INDEX(TabProduto[#All],MATCH(TabProdutoPorto[[#This Row],[PRODUTO]],TabProduto[[#All],[PRODUTO]],0),1)","v":23},"Craft ","lt"]
[3,"PORTO AMAZONAS",1,"SOJA/CEREAL",{"$f":"INDEX(TabProduto[#All],MATCH(TabProdutoPorto[[#This Row],[PRODUTO]],TabProduto[[#All],[PRODUTO]],0),1)","v":25},"Curiom ","lt"]
[3,"PORTO AMAZONAS",1,"SOJA/CEREAL",{"$f":"INDEX(TabProduto[#All],MATCH(TabProdutoPorto[[#This Row],[PRODUTO]],TabProduto[[#All],[PRODUTO]],0),1)","v":28},"Elatus ","kg"]
[3,"PORTO AMAZONAS",1,"SOJA/CEREAL",{"$f":"INDEX(TabProduto[#All],MATCH(TabProdutoPorto[[#This Row],[PRODUTO]],TabProduto[[#All],[PRODUTO]],0),1)","v":30},"Engeo Pleno ","lt"]
[3,"PORTO AMAZONAS",1,"SOJA/CEREAL",{"$f":"INDEX(TabProduto[#All],MATCH(TabProdutoPorto[[#This Row],[PRODUTO]],TabProduto[[#All],[PRODUTO]],0),1)","v":32},"Escore flex ","lt"]
[3,"PORTO AMAZONAS",1,"SOJA/CEREAL",{"$f":"INDEX(TabProduto[#All],MATCH(TabProdutoPorto[[#This Row],[PRODUTO]],TabProduto[[#All],[PRODUTO]],0),1)","v":34},"Fert Mimo ","lt"]
[3,"PORTO AMAZONAS",1,"SOJA/CEREAL",{"$f":"INDEX(TabProduto[#All],MATCH(TabProdutoPorto[[#This Row],[PRODUTO]],TabProduto[[#All],[PRODUTO]],0),1)","v":40},"Flex ","lt"]
[3,"PORTO AMAZONAS",1,"SOJA/CEREAL",{"$f":"INDEX(TabProduto[#All],MATCH(TabProdutoPorto[[#This Row],[PRODUTO]],TabProduto[[#All],[PRODUTO]],0),1)","v":41},"Fox ","lt"]
[3,"PORTO AMAZONAS",1,"SOJA/CEREAL",{"$f":"INDEX(TabProduto[#All],MATCH(TabProdutoPorto[[#This Row],[PRODUTO]],TabProduto[[#All],[PRODUTO]],0),1)","v":44},"Imunit ","lt"]
[3,"PORTO AMAZONAS",1,"SOJA/CEREAL",{"$f":"INDEX(TabProduto[#All],MATCH(TabProdutoPorto[[#This Row],[PRODUTO]],TabProduto[[#All],[PRODUTO]],0),1)","v":47},"Mertim ","lt"]
[3,"PORTO AMAZONAS",1,"SOJA/CEREAL",{"$f":"INDEX(TabProduto[#All],MATCH(TabProdutoPorto[[#This Row],[PRODUTO]],TabProduto[[#All],[PRODUTO]],0),1)","v":49},"Mustang ","lt"]
[3,"PORTO AMAZONAS",1,"SOJA/CEREAL",{"$f":"INDEX(TabProduto[#All],MATCH(TabProdutoPorto[[#This Row],[PRODUTO]],TabProduto[[#All],[PRODUTO]],0),1)","v":50},"Natur óleo ","lt"]
[3,"PORTO AMAZONAS",1,"SOJA/CEREAL",{"$f":"INDEX(TabProduto[#All],MATCH(TabProdutoPorto[[#This Row],[PRODUTO]],TabProduto[[#All],[PRODUTO]],0),1)","v":53},"Ninbus ","lt"]
[3,"PORTO AMAZONAS",1,"SOJA/CEREAL",{"$f":"INDEX(TabProduto[#All],MATCH(TabProdutoPorto[[#This Row],[PRODUTO]],TabProduto[[#All],[PRODUTO]],0),1)","v":55},"Opera Ultra ","lt"]
[3,"PORTO AMAZONAS",1,"SOJA/CEREAL",{"$f":"INDEX(TabProduto[#All],MATCH(TabProdutoPorto[[#This Row],[PRODUTO]],TabProduto[[#All],[PRODUTO]],0),1)","v":58},"Paradox ","lt"]
[3,"PORTO AMAZONAS",1,"SOJA/CEREAL",{"$f":"INDEX(TabProduto[#All],MATCH(TabProdutoPorto[[#This Row],[PRODUTO]],TabProduto[[#All],[PRODUTO]],0),1)","v":59},"Platinum neo ","lt"]
[3,"PORTO AMAZONAS",1,"SOJA/CEREAL",{"$f":"INDEX(TabProduto[#All],MATCH(TabProdutoPorto[[#This Row],[PRODUTO]],TabProduto[[#All],[PRODUTO]],0),1)","v":70},"Starter","lt"]
[3,"PORTO AMAZONAS",1,"SOJA/CEREAL",{"$f":"INDEX(TabProduto[#All],MATCH(TabProdutoPorto[[#This Row],[PRODUTO]],TabProduto[[#All],[PRODUTO]],0),1)","v":73},"Unizeb ","kg"]
[3,"PORTO AMAZONAS",1,"SOJA/CEREAL",{"$f":"INDEX(TabProduto[#All],MATCH(TabProdutoPorto[[#This Row],[PRODUTO]],TabProduto[[#All],[PRODUTO]],0),1)","v":74},"Verdict ","lt"]
[3,"PORTO AMAZONAS",1,"SOJA/CEREAL",{"$f":"INDEX(TabProduto[#All],MATCH(TabProdutoPorto[[#This Row],[PRODUTO]],TabProduto[[#All],[PRODUTO]],0),1)","v":76},"Zatphir ","lt"]

{"sheet":"Produto","index":9,"n_rows":80,"n_cols":3,"rows_kept":80,"cut":false,"hidden":false,"merged":[]}
[{"$f":"COUNTA(TabProduto[CÓD PROD])","v":77},"Produtos"]
[]
["CÓD PROD","PRODUTO","UNID"]
[1,"Actara","kg"]
[2,"Ad+ ","lt"]
[3,"Adesil","lt"]
[4,"Agral","lt"]
[5,"Amistar Top","lt"]
[6,"Ampligo","lt"]
[7,"Amplo","lt"]
[8,"Anpligo ","lt"]
[9,"Aureo ","lt"]
[10,"Basagran","lt"]
[11,"Benivia","lt"]
[12,"Brabonil","lt"]
[13,"Brilhant","lt"]
[14,"Brilhante ","lt"]
[15,"Caiso ","lt"]
[16,"Carbendazim","lt"]
[17,"Carbendozin","lt"]
[18,"Certero ","lt"]
[19,"Cimox","kg"]
[20,"Cobre","lt"]
[21,"CoMo","lt"]
[22,"Coronel ","lt"]
[23,"Craft ","lt"]
[24,"Curiom","lt"]
[25,"Curiom ","lt"]
[26,"Currum Max","lt"]
[27,"Dual Gold","lt"]
[28,"Elatus ","kg"]
[29,"Engeo Pleno","lt"]
[30,"Engeo Pleno ","lt"]
[31,"Equatim","kg"]
[32,"Escore flex ","lt"]
[33,"Fert Mimo","lt"]
[34,"Fert Mimo ","lt"]
[35,"Fertaction","lt"]
[36,"Fertimino","lt"]
[37,"Finale","lt"]
[38,"Flavom","lt"]
[39,"Flex","lt"]
[40,"Flex ","lt"]
[41,"Fox ","lt"]
[42,"Frutus Flus","lt"]
[43,"Fuzilade","lt"]
[44,"Imunit ","lt"]
[45,"Kocid","kg"]
[46,"Korpam","lt"]
[47,"Mertim ","lt"]
[48,"Morcult","lt"]
[49,"Mustang ","lt"]
[50,"Natur óleo ","lt"]
[51,"Nidas","kg"]
[52,"Nimbus","lt"]
[53,"Ninbus ","lt"]
[54,"Opera Ultra","lt"]
[55,"Opera Ultra ","lt"]
[56,"Oro Bor","lt"]
[57,"Ortene","kg"]
[58,"Paradox ","lt"]
[59,"Platinum neo ","lt"]
[60,"Previnil","lt"]
[61,"Pro Plant","lt"]
[62,"Quality","kg"]
[63,"Quantis","lt"]
[64,"Repom","kg"]
[65,"Revus","lt"]
[66,"Rodomil","lt"]
[67,"Scher 10","lt"]
[68,"Sistemic","lt"]
[69,"Start","lt"]
[70,"Starter","lt"]
[71,"Tiger ","lt"]
[72,"Tocha","lt"]
[73,"Unizeb ","kg"]
[74,"Verdict ","lt"]
[75,"Zapp","lt"]
[76,"Zatphir ","lt"]
[77,"Zignal","lt"]

{"sheet":"Arquivo","index":10,"n_rows":322,"n_cols":15,"rows_kept":322,"cut":false,"hidden":false,"merged":[[4,11,8,14]]}
["DATA","CÓD PORTO","CÓD PRODUTO","CÓD TIPO","ENTRADA","SAÍDA","RETORNO",null,{"$f":"COUNTA(TabArquivoCon[DATA])","v":321},"Registros",null,"De:",{"$f":"MIN(TabArquivoCon[DATA])","v":"2016-05-29"},"até:",{"$f":"MAX(TabArquivoCon[DATA])","v":"2016-06-07"}]
["2016-05-29",2,3,1,257.39999999999998,192,19.2]
["2016-05-29",2,4,1,29.4,22.2,1.8]
["2016-05-29",2,5,1,18,13.2,1.2]
["2016-05-29",2,7,1,63.6,47.4,4.8,null,null,null,null,"Em caso de entrada repetida de dados selecionar planilha inteira e usar o botão Remover Duplicatas em Dados."]
["2016-05-29",2,10,1,132.6,99,9.6]
["2016-05-29",2,17,1,15.6,11.4,0.6]
["2016-05-29",2,21,1,79.2,59.4,6]
["2016-05-29",2,27,1,61.8,46.2,4.2]
["2016-05-29",2,29,1,16.2,12,1.2]
["2016-05-29",2,35,1,39.6,29.4,3]
["2016-05-29",2,36,1,82.8,61.8,6]
["2016-05-29",2,37,1,108,80.400000000000006,7.8]
["2016-05-29",2,39,1,11.4,8.4,0.6]
["2016-05-29",2,52,1,20.399999999999999,15,1.2]
["2016-05-29",2,54,1,531.6,396,40.200000000000003]
["2016-05-29",2,62,1,5.4,4.2]
["2016-05-29",2,63,1,31.2,23.4,1.8]
["2016-05-29",2,69,1,165.6,123.6,12]
["2016-05-29",2,72,1,129.6,96.6,9.6]
["2016-05-29",2,75,1,49.8,36.6,3.6]
["2016-05-30",2,3,1,429,320,32]
["2016-05-30",2,4,1,49,37,3]
["2016-05-30",2,5,1,30,22,2]
["2016-05-30",2,7,1,106,79,8]
["2016-05-30",2,10,1,221,165,16]
["2016-05-30",2,17,1,26,19,1]
["2016-05-30",2,21,1,132,99,10]
["2016-05-30",2,27,1,103,77,7]
["2016-05-30",2,29,1,27,20,2]
["2016-05-30",2,35,1,66,49,5]
["2016-05-30",2,36,1,138,103,10]
["2016-05-30",2,37,1,180,134,13]
["2016-05-30",2,39,1,19,14,1]
["2016-05-30",2,52,1,34,25,2]
["2016-05-30",2,54,1,886,660,67]
["2016-05-30",2,62,1,9,7,0]
["2016-05-30",2,63,1,52,39,3]
["2016-05-30",2,69,1,276,206,20]
["2016-05-30",2,72,1,216,161,16]
["2016-05-30",2,75,1,83,61,6]
["2016-05-31",1,3,1,429,320,32]
["2016-05-31",1,4,1,49,37,3]
["2016-05-31",1,5,1,30,22,2]
["2016-05-31",1,7,1,106,79,8]
["2016-05-31",1,10,1,221,165,16]
["2016-05-31",1,17,1,26,19,1]
["2016-05-31",1,21,1,132,99,10]
["2016-05-31",1,27,1,103,77,7]
["2016-05-31",1,29,1,27,20,2]
["2016-05-31",1,35,1,66,49,5]
["2016-05-31",1,36,1,138,103,10]
["2016-05-31",1,37,1,180,134,13]
["2016-05-31",1,39,1,19,14,1]
["2016-05-31",1,52,1,34,25,2]
["2016-05-31",1,54,1,886,660,67]
["2016-05-31",1,62,1,9,7,0]
["2016-05-31",1,63,1,52,39,3]
["2016-05-31",1,69,1,276,206,20]
["2016-05-31",1,72,1,216,161,16]
["2016-05-31",1,75,1,83,61,6]
["2016-05-31",2,3,1,300.3,224,22.4]
["2016-05-31",2,4,1,34.299999999999997,25.9,2.1]
["2016-05-31",2,5,1,21,15.4,1.4]
["2016-05-31",2,7,1,74.2,55.3,5.6]
["2016-05-31",2,10,1,154.69999999999999,115.5,11.2]
["2016-05-31",2,17,1,18.2,13.3,0.7]
["2016-05-31",2,21,1,92.4,69.3,7]
["2016-05-31",2,27,1,72.099999999999994,53.9,4.9000000000000004]
["2016-05-31",2,29,1,18.899999999999999,14,1.4]
["2016-05-31",2,35,1,46.2,34.299999999999997,3.5]
["2016-05-31",2,36,1,96.6,72.099999999999994,7]
["2016-05-31",2,37,1,126,93.8,9.1]
["2016-05-31",2,39,1,13.3,9.8000000000000007,0.7]
["2016-05-31",2,52,1,23.8,17.5,1.4]
["2016-05-31",2,54,1,620.20000000000005,462,46.9]
["2016-05-31",2,62,1,6.3,4.9000000000000004,0]
["2016-05-31",2,63,1,36.4,27.3,2.1]
["2016-05-31",2,69,1,193.2,144.19999999999999,14]
["2016-05-31",2,72,1,151.19999999999999,112.7,11.2]
["2016-05-31",2,75,1,58.1,42.7,4.2]
["2016-06-01",1,3,1,257.39999999999998,192,19.2]
["2016-06-01",1,4,1,29.4,22.2,1.8]
["2016-06-01",1,5,1,18,13.2,1.2]
["2016-06-01",1,7,1,63.6,47.4,4.8]
["2016-06-01",1,10,1,132.6,99,9.6]
["2016-06-01",1,17,1,15.6,11.4,0.6]
["2016-06-01",1,21,1,79.2,59.4,6]
["2016-06-01",1,27,1,61.8,46.2,4.2]
["2016-06-01",1,29,1,16.2,12,1.2]
["2016-06-01",1,35,1,39.6,29.4,3]
["2016-06-01",1,36,1,82.8,61.8,6]
["2016-06-01",1,37,1,108,80.400000000000006,7.8]
["2016-06-01",1,39,1,11.4,8.4,0.6]
["2016-06-01",1,52,1,20.399999999999999,15,1.2]
["2016-06-01",1,54,1,531.6,396,40.200000000000003]
["2016-06-01",1,62,1,5.4,4.2]
["2016-06-01",1,63,1,31.2,23.4,1.8]
["2016-06-01",1,69,1,165.6,123.6,12]
["2016-06-01",1,72,1,129.6,96.6,9.6]
["2016-06-01",1,75,1,49.8,36.6,3.6]
["2016-06-01",2,3,1,300.3,224,22.4]
["2016-06-01",2,4,1,34.299999999999997,25.9,2.1]
["2016-06-01",2,5,1,21,15.4,1.4]
["2016-06-01",2,7,1,74.2,55.3,5.6]
["2016-06-01",2,10,1,154.69999999999999,115.5,11.2]
["2016-06-01",2,17,1,18.2,13.3,0.7]
["2016-06-01",2,21,1,92.4,69.3,7]
["2016-06-01",2,27,1,72.099999999999994,53.9,4.9000000000000004]
["2016-06-01",2,29,1,18.899999999999999,14,1.4]
["2016-06-01",2,35,1,46.2,34.299999999999997,3.5]
["2016-06-01",2,36,1,96.6,72.099999999999994,7]
["2016-06-01",2,37,1,126,93.8,9.1]
["2016-06-01",2,39,1,13.3,9.8000000000000007,0.7]
["2016-06-01",2,52,1,23.8,17.5,1.4]
["2016-06-01",2,54,1,620.20000000000005,462,46.9]
["2016-06-01",2,62,1,6.3,4.9000000000000004]
["2016-06-01",2,63,1,36.4,27.3,2.1]
["2016-06-01",2,69,1,193.2,144.19999999999999,14]
["2016-06-01",2,72,1,151.19999999999999,112.7,11.2]
["2016-06-01",2,75,1,58.1,42.7,4.2]
["2016-06-01",3,2,1,343.2,256,25.6]
["2016-06-01",3,8,1,39.200000000000003,29.6,2.4]
["2016-06-01",3,9,1,24,17.600000000000001,1.6]
["2016-06-01",3,14,1,84.8,63.2,6.4]
["2016-06-01",3,15,1,176.8,132,12.8]
["2016-06-01",3,18,1,20.8,15.2,0.8]
["2016-06-01",3,21,1,105.6,79.2,8]
["2016-06-01",3,23,1,82.4,61.6,5.6]
["2016-06-01",3,25,1,21.6,16,1.6]
["2016-06-01",3,28,1,52.8,39.200000000000003,4]
["2016-06-01",3,30,1,110.4,82.4,8]
["2016-06-01",3,32,1,144,107.2,10.4]
["2016-06-01",3,34,1,15.2,11.2,0.8]
["2016-06-01",3,40,1,27.2,20,1.6]
["2016-06-01",3,41,1,708.8,528,53.6]
["2016-06-01",3,44,1,7.2,5.6]
["2016-06-01",3,47,1,41.6,31.2,2.4]
["2016-06-01",3,49,1,220.8,164.8,16]
["2016-06-01",3,50,1,172.8,128.80000000000001,12.8]
["2016-06-01",3,53,1,66.400000000000006,48.8,4.8]
["2016-06-01",3,55,1,66,49,5]
["2016-06-01",3,58,1,138,103,10]
["2016-06-01",3,59,1,180,134,13]
["2016-06-01",3,70,1,19,14,1]
["2016-06-01",3,73,1,34,25,2]
["2016-06-01",3,74,1,886,660,67]
["2016-06-01",3,76,1,9,7]
["2016-06-01",3,1,2,364.65,272,27.2]
["2016-06-01",3,3,2,41.65,31.45,2.5499999999999998]
["2016-06-01",3,5,2,25.5,18.7,1.7]
["2016-06-01",3,6,2,90.1,67.150000000000006,6.8]
["2016-06-01",3,11,2,187.85,140.25,13.6]
["2016-06-01",3,12,2,22.1,16.149999999999999,0.85]
["2016-06-01",3,13,2,112.2,84.15,8.5]
["2016-06-01",3,16,2,87.55,65.45,5.95]
["2016-06-01",3,19,2,22.95,17,1.7]
["2016-06-01",3,20,2,56.1,41.65,4.25]
["2016-06-01",3,22,2,117.3,87.55,8.5]
["2016-06-01",3,24,2,153,113.9,11.05]
["2016-06-01",3,26,2,16.149999999999999,11.9,0.85]
["2016-06-01",3,29,2,28.9,21.25,1.7]
["2016-06-01",3,31,2,753.1,561,56.95]
["2016-06-01",3,33,2,7.65,5.95]
["2016-06-01",3,38,2,44.2,33.15,2.5499999999999998]
["2016-06-01",3,42,2,234.6,175.1,17]
["2016-06-01",3,43,2,183.6,136.85,13.6]
["2016-06-01",3,45,2,70.55,51.85,5.0999999999999996]
["2016-06-01",3,46,2,429,320,32]
["2016-06-01",3,48,2,49,37,3]
["2016-06-01",3,51,2,30,22,2]
["2016-06-01",3,56,2,106,79,8]
["2016-06-01",3,57,2,221,165,16]
["2016-06-01",3,60,2,26,19,1]
["2016-06-01",3,61,2,132,99,10]
["2016-06-01",3,64,2,103,77,7]
["2016-06-01",3,65,2,27,20,2]
["2016-06-01",3,66,2,66,49,5]
["2016-06-01",3,67,2,138,103,10]
["2016-06-01",3,68,2,180,134,13]
["2016-06-01",3,71,2,19,14,1]
["2016-06-01",3,77,2,34,25,2]
["2016-06-02",1,3,1,257.39999999999998,192,19.2]
["2016-06-02",1,4,1,29.4,22.2,1.8]
["2016-06-02",1,5,1,18,13.2,1.2]
["2016-06-02",1,7,1,63.6,47.4,4.8]
["2016-06-02",1,10,1,132.6,99,9.6]
["2016-06-02",1,17,1,15.6,11.4,0.6]
["2016-06-02",1,21,1,79.2,59.4,6]
["2016-06-02",1,27,1,61.8,46.2,4.2]
["2016-06-02",1,29,1,16.2,12,1.2]
["2016-06-02",1,35,1,39.6,29.4,3]
["2016-06-02",1,36,1,82.8,61.8,6]
["2016-06-02",1,37,1,108,80.400000000000006,7.8]
["2016-06-02",1,39,1,11.4,8.4,0.6]
["2016-06-02",1,52,1,20.399999999999999,15,1.2]
["2016-06-02",1,54,1,531.6,396,40.200000000000003]
["2016-06-02",1,62,1,5.4,4.2]
["2016-06-02",1,63,1,31.2,23.4,1.8]
["2016-06-02",1,69,1,165.6,123.6,12]
["2016-06-02",1,72,1,129.6,96.6,9.6]
["2016-06-02",1,75,1,49.8,36.6,3.6]
["2016-06-02",2,3,1,300.3,224,22.4]
["2016-06-02",2,4,1,34.299999999999997,25.9,2.1]
["2016-06-02",2,5,1,21,15.4,1.4]
["2016-06-02",2,7,1,74.2,55.3,5.6]
["2016-06-02",2,10,1,154.69999999999999,115.5,11.2]
["2016-06-02",2,17,1,18.2,13.3,0.7]
["2016-06-02",2,21,1,92.4,69.3,7]
["2016-06-02",2,27,1,72.099999999999994,53.9,4.9000000000000004]
["2016-06-02",2,29,1,18.899999999999999,14,1.4]
["2016-06-02",2,35,1,46.2,34.299999999999997,3.5]
["2016-06-02",2,36,1,96.6,72.099999999999994,7]
["2016-06-02",2,37,1,126,93.8,9.1]
["2016-06-02",2,39,1,13.3,9.8000000000000007,0.7]
["2016-06-02",2,52,1,23.8,17.5,1.4]
["2016-06-02",2,54,1,620.20000000000005,462,46.9]
["2016-06-02",2,62,1,6.3,4.9000000000000004]
["2016-06-02",2,63,1,36.4,27.3,2.1]
["2016-06-02",2,69,1,193.2,144.19999999999999,14]
["2016-06-02",2,72,1,151.19999999999999,112.7,11.2]
["2016-06-02",2,75,1,58.1,42.7,4.2]
["2016-06-03",1,3,1,257.39999999999998,192,19.2]
["2016-06-03",1,4,1,29.4,22.2,1.8]
["2016-06-03",1,5,1,18,13.2,1.2]
["2016-06-03",1,7,1,63.6,47.4,4.8]
["2016-06-03",1,10,1,132.6,99,9.6]
["2016-06-03",1,17,1,15.6,11.4,0.6]
["2016-06-03",1,21,1,79.2,59.4,6]
["2016-06-03",1,27,1,61.8,46.2,4.2]
["2016-06-03",1,29,1,16.2,12,1.2]
["2016-06-03",1,35,1,39.6,29.4,3]
["2016-06-03",1,36,1,82.8,61.8,6]
["2016-06-03",1,37,1,108,80.400000000000006,7.8]
["2016-06-03",1,39,1,11.4,8.4,0.6]
["2016-06-03",1,52,1,20.399999999999999,15,1.2]
["2016-06-03",1,54,1,531.6,396,40.200000000000003]
["2016-06-03",1,62,1,5.4,4.2]
["2016-06-03",1,63,1,31.2,23.4,1.8]
["2016-06-03",1,69,1,165.6,123.6,12]
["2016-06-03",1,72,1,129.6,96.6,9.6]
["2016-06-03",1,75,1,49.8,36.6,3.6]
["2016-06-03",2,3,1,300.3,224,22.4]
["2016-06-03",2,4,1,34.299999999999997,25.9,2.1]
["2016-06-03",2,5,1,21,15.4,1.4]
["2016-06-03",2,7,1,74.2,55.3,5.6]
["2016-06-03",2,10,1,154.69999999999999,115.5,11.2]
["2016-06-03",2,17,1,18.2,13.3,0.7]
["2016-06-03",2,21,1,92.4,69.3,7]
["2016-06-03",2,27,1,72.099999999999994,53.9,4.9000000000000004]
["2016-06-03",2,29,1,18.899999999999999,14,1.4]
["2016-06-03",2,35,1,46.2,34.299999999999997,3.5]
["2016-06-03",2,36,1,96.6,72.099999999999994,7]
["2016-06-03",2,37,1,126,93.8,9.1]
["2016-06-03",2,39,1,13.3,9.8000000000000007,0.7]
["2016-06-03",2,52,1,23.8,17.5,1.4]
["2016-06-03",2,54,1,620.20000000000005,462,46.9]
["2016-06-03",2,62,1,6.3,4.9000000000000004]
["2016-06-03",2,63,1,36.4,27.3,2.1]
["2016-06-03",2,69,1,193.2,144.19999999999999,14]
["2016-06-03",2,72,1,151.19999999999999,112.7,11.2]
["2016-06-03",2,75,1,58.1,42.7,4.2]
["2016-06-06",1,3,1,257.39999999999998,192,19.2]
["2016-06-06",1,4,1,29.4,22.2,1.8]
["2016-06-06",1,5,1,18,13.2,1.2]
["2016-06-06",1,7,1,63.6,47.4,4.8]
["2016-06-06",1,10,1,132.6,99,9.6]
["2016-06-06",1,17,1,15.6,11.4,0.6]
["2016-06-06",1,21,1,79.2,59.4,6]
["2016-06-06",1,27,1,61.8,46.2,4.2]
["2016-06-06",1,29,1,16.2,12,1.2]
["2016-06-06",1,35,1,39.6,29.4,3]
["2016-06-06",1,36,1,82.8,61.8,6]
["2016-06-06",1,37,1,108,80.400000000000006,7.8]
["2016-06-06",1,39,1,11.4,8.4,0.6]
["2016-06-06",1,52,1,20.399999999999999,15,1.2]
["2016-06-06",1,54,1,531.6,396,40.200000000000003]
["2016-06-06",1,62,1,5.4,4.2]
["2016-06-06",1,63,1,31.2,23.4,1.8]
["2016-06-06",1,69,1,165.6,123.6,12]
["2016-06-06",1,72,1,129.6,96.6,9.6]
["2016-06-06",1,75,1,49.8,36.6,3.6]
["2016-06-07",1,3,1,257.39999999999998,192,19.2]
["2016-06-07",1,4,1,29.4,22.2,1.8]
["2016-06-07",1,5,1,18,13.2,1.2]
["2016-06-07",1,7,1,63.6,47.4,4.8]
["2016-06-07",1,10,1,132.6,99,9.6]
["2016-06-07",1,17,1,15.6,11.4,0.6]
["2016-06-07",1,21,1,79.2,59.4,6]
["2016-06-07",1,27,1,61.8,46.2,4.2]
["2016-06-07",1,29,1,16.2,12,1.2]
["2016-06-07",1,35,1,39.6,29.4,3]
["2016-06-07",1,36,1,82.8,61.8,6]
["2016-06-07",1,37,1,108,80.400000000000006,7.8]
["2016-06-07",1,39,1,11.4,8.4,0.6]
["2016-06-07",1,52,1,20.399999999999999,15,1.2]
["2016-06-07",1,54,1,531.6,396,40.200000000000003]
["2016-06-07",1,62,1,5.4,4.2]
["2016-06-07",1,63,1,31.2,23.4,1.8]
["2016-06-07",1,69,1,165.6,123.6,12]
["2016-06-07",1,72,1,129.6,96.6,9.6]
["2016-06-07",1,75,1,49.8,36.6,3.6]
["2016-06-07",2,3,1,257.39999999999998,192,19.2]
["2016-06-07",2,4,1,29.4,22.2,1.8]
["2016-06-07",2,5,1,18,13.2,1.2]
["2016-06-07",2,7,1,63.6,47.4,4.8]
["2016-06-07",2,10,1,132.6,99,9.6]
["2016-06-07",2,17,1,15.6,11.4,0.6]
["2016-06-07",2,21,1,79.2,59.4,6]
["2016-06-07",2,27,1,61.8,46.2,4.2]
["2016-06-07",2,29,1,16.2,12,1.2]
["2016-06-07",2,35,1,39.6,29.4,3]
["2016-06-07",2,36,1,82.8,61.8,6]
["2016-06-07",2,37,1,108,80.400000000000006,7.8]
["2016-06-07",2,39,1,11.4,8.4,0.6]
["2016-06-07",2,52,1,20.399999999999999,15,1.2]
["2016-06-07",2,54,1,531.6,396,40.200000000000003]
["2016-06-07",2,62,1,5.4,4.2]
["2016-06-07",2,63,1,31.2,23.4,1.8]
["2016-06-07",2,69,1,165.6,123.6,12]
["2016-06-07",2,72,1,129.6,96.6,9.6]
["2016-06-07",2,75,1,49.8,36.6,3.6]